Workbook

Sheet PREMIUM
L1: скидка
K2: premium | L2: -0.2
A8: Прайс-лист на кухонные вытяжки "FABER" с 11/02/2013 | K8: Курс EUR* - | L8: 41
A9: Фото | B9: FUN -code new FUN-code | C9: Наименование | D9: программа | E9: Ширина,мм | F9: ЦВЕТ | G9: Производительность, куб/час | H9: Мин. уровень шума,ДБ | I9: Управление | J9: Освещение | K9: Цена розница (EUR) | L9: Цена розница (руб.) | M9: Цена закупки, (руб.)
A11: Серия F-LIGHT
B12: 110.0255.506 | C12: ARKEA (SET) | D12: основная | E12: 600 | F12: RGB | G12: 520/830 | H12: 46ДБ | I12: электронное + пульт ДУ | J12: 4 LED | K12: =R12+R12*10/100 -> 2833.6 | L12: =K12*$L$8 -> 116177.6 | M12: =L12*(1+$L$2) -> 92942.08 | R12: =S12+S12*12/100 -> 2576 | S12: 2300
B13: 110.0255.507 | C13: LYBRA (SET) | D13: основная | E13: 409 | F13: нерж.сталь+ матовый белый | G13: 520/830 | H13: 46ДБ | I13: электронное + пульт ДУ | J13: 2 LED | K13: =R13+R13*10/100 -> 2032.8 | L13: =K13*$L$8 -> 83344.8 | M13: =L13*(1+$L$2) -> 66675.84 | R13: =S13+S13*12/100 -> 1848 | S13: 1650
B14: 110.0255.508 | C14: PAREO (SET) | D14: основная | E14: 500 | F14: нерж.сталь | G14: 520/830 | H14: 46ДБ | I14: электронное + пульт ДУ | J14: 4 LED | K14: 2464 | L14: =K14*$L$8 -> 101024 | M14: =L14*(1+$L$2) -> 80819.2 | R14: 2240 | S14: 2000
B15: 110.0157.233 | C15: ZOOM | D15: основная | E15: 400 | F15: нерж.сталь | G15: 520/830 | H15: 46ДБ | I15: электронное + пульт ДУ | J15: 4 галоген. | K15: 1540 | L15: =K15*$L$8 -> 63140 | M15: =L15*(1+$L$2) -> 50512 | R15: 1400 | S15: 1250
B16: 110.0157.237 | C16: KALEIDOS (SET) | D16: основная | E16: 600 | F16: нерж.сталь+ чёрный | G16: 520/830 | H16: 46ДБ | I16: электронное + пульт ДУ | J16: 4 галоген. | K16: 2162.16 | L16: 88648.56 | M16: 70918.848 | R16: 1965.6 | S16: 1755
B17: 110.0157.236 | C17: CHIC (SET) | D17: основная | E17: 520 | F17: нерж.сталь+ чёрный | G17: 520/830 | H17: 46ДБ | I17: электронное + пульт ДУ | J17: 4 галоген. | K17: 2944.48 | L17: 120723.68 | M17: 96578.944 | R17: 2676.8 | S17: 2390
B18: 110.0157.148 | C18: VERTIGO (SET) | D18: основная | E18: 520 | F18: нерж.сталь | G18: 520/830 | H18: 46ДБ | I18: электронное + пульт ДУ | J18: 4 галоген. | K18: 2032.8 | L18: 83344.8 | M18: 66675.84 | R18: 1848 | S18: 1650
B19: 110.0157.149 | C19: VANILLA (SET) | D19: основная | E19: 520 | F19: нерж.сталь+ матовый белый | G19: 520/830 | H19: 46ДБ | I19: электронное + пульт ДУ | J19: 4 галоген. | K19: 2365.44 | L19: 96983.04 | M19: 77586.432 | R19: 2150.4 | S19: 1920
B20: 110.0157.235 | C20: LUXIA (SET) | D20: основная | E20: 530 | F20: нерж.сталь+ стекло | G20: 520/830 | H20: 46ДБ | I20: электронное + пульт ДУ | J20: 4 галоген. | K20: 3511.2 | L20: 143959.2 | M20: 115167.36 | R20: 3192 | S20: 2850
B21: 110.0157.234 | C21: NEST (SET) | D21: основная | E21: 860 | F21: нерж.сталь+ стекло | G21: 520/830 | H21: 46ДБ | I21: электронное + пульт ДУ | J21: 4 галоген. | K21: 2574.88 | L21: 105570.08 | M21: 84456.064 | R21: 2340.8 | S21: 2090
A22: Пристенные | K22: 0 | R22: 0
B23: 110.0255.086 | C23: KLIMA QUAD X A90 | D23: IV квартал 2012 года | E23: 900 | F23: нерж.сталь, | G23: 750/1100 | H23: 46ДБ | I23: электронное | J23: 3 галоген. | K23: 2833.6 | L23: =K23*$L$8 -> 116177.6 | M23: =L23*(1+$L$2) -> 92942.08 | R23: 2576 | S23: 2300
B24: 110.0156.532 | C24: PEARL PRO WP A80 | D24: основная | E24: 800 | F24: перламутр./нерж. | G24: 750/1200 | H24: 34ДБ | I24: электронное | J24: 2 LED | K24: 2833.6 | L24: 116177.6 | M24: 92942.08 | R24: 2576 | S24: 2300
B25: 110.0156.611 | C25: MIRROR ART 3PH X/V A80 LOGIC | D25: До окончания остатков! | E25: 800 | F25: нерж.сталь, белое стекло | G25: 860/1360 | H25: 33ДБ | I25: электронное | J25: 2 LED | K25: 2340.8 | L25: 95972.8 | M25: 76778.24 | R25: 2128 | S25: 1900
B26: 110.0255.525 | C26: MIRROR ART BRS X/V A80 LOGIC | D26: C февраля 2013! | E26: 801 | F26: нерж.сталь, белое стекло | G26: 860/1360 | H26: 33ДБ | I26: электронное | J26: 2 LED | K26: 2340.8 | L26: 95972.8 | M26: 76778.24 | R26: 2128 | S26: 1900
B27: 110.0156.610 | C27: MIRROR WH 3PH X/V A80 LOGIC | D27: До окончания остатков! | E27: 800 | F27: нерж.сталь, белое стекло | G27: 860/1360 | H27: 33ДБ | I27: электронное | J27: 2 LED | K27: 2094.4 | L27: 85870.4 | M27: 68696.32 | R27: 1904 | S27: 1700
B28: 110.0255.528 | C28: MIRROR WH BRS X/V A80 LOGIC | D28: C февраля 2013! | E28: 800 | F28: нерж.сталь, белое стекло | G28: 860/1360 | H28: 33ДБ | I28: электронное | J28: 2 LED | K28: 2094.4 | L28: 85870.4 | M28: 68696.32 | R28: 1904 | S28: 1700
B29: 110.0184.793 | C29: MIRROR BK 3PH X/V A90 LOGIC | D29: До окончания остатков! | E29: 900 | F29: нерж.сталь, черное стекло | G29: 860/1360 | H29: 33ДБ | I29: электронное | J29: 2 LED | K29: 2131.36 | L29: 87385.76 | M29: 69908.608 | R29: 1937.6 | S29: 1730
B30: 110.0156.609 | C30: MIRROR BK 3PH X/V A80 LOGIC | D30: До окончания остатков! | E30: 800 | F30: нерж.сталь, черное стекло | G30: 860/1360 | H30: 33ДБ | I30: электронное | J30: 2 LED | K30: 2094.4 | L30: 85870.4 | M30: 68696.32 | R30: 1904 | S30: 1700
B31: 110.0255.526 | C31: MIRROR BK BRS X/V A80 LOGIC | D31: C февраля 2013! | E31: 800 | F31: нерж.сталь, черное стекло | G31: 860/1360 | H31: 33ДБ | I31: электронное | J31: 2 LED | K31: 2094.4 | L31: 85870.4 | M31: 68696.32 | R31: 1904 | S31: 1700
B32: 110.0255.527 | C32: MIRROR BK BRS X/V A90 LOGIC | D32: C февраля 2013! | E32: 900 | F32: нерж.сталь, черное стекло | G32: 860/1360 | H32: 33ДБ | I32: электронное | J32: 2 LED | K32: 2131.36 | L32: 87385.76 | M32: 69908.608 | R32: 1937.6 | S32: 1730
B33: 110.0156.623 | C33: MATRIX EG10 X A90 ACTIVE | D33: основная | E33: 900 | F33: нерж.сталь, | G33: 840/1350 | H33: 49ДБ | I33: электронное | J33: 3 галоген. | K33: 1743.28 | L33: =K33*$L$8 -> 71474.48 | M33: =L33*(1+$L$2) -> 57179.584 | R33: 1584.8 | S33: 1415
B34: 110.0180.976 | C34: DREAM EG 8 WH A80 | D34: основная | E34: 800 | F34: белый | G34: 710/1150 | H34: 42 ДБ | I34: сенсорное | J34: неоновое | K34: 1478.4 | L34: 60614.4 | M34: 48491.52 | R34: 1344 | S34: 1200
B35: 110.0180.977 | C35: DREAM EG 8 ВК A80 | D35: основная | E35: 800 | F35: черный | G35: 710/1150 | H35: 42 ДБ | I35: сенсорное | J35: неоновое | K35: 1478.4 | L35: 60614.4 | M35: 48491.52 | R35: 1344 | S35: 1200
B36: 110.0156.627 110.0256.162 | C36: EKO EG8 BK A80 | D36: основная | E36: 800 | F36: черный | G36: 710/1150 | H36: 42ДБ | I36: электронное | J36: неоновое / LED-new code | K36: 1398.32 | L36: 57331.12 | M36: 45864.896 | R36: 1271.2 | S36: 1135
B37: 110.0156.628 110.0256.163 | C37: EKO EG8 WH A80 | D37: основная | E37: 800 | F37: белый | G37: 710/1150 | H37: 42ДБ | I37: электронное | J37: неоновое / LED-new code | K37: 1398.32 | L37: 57331.12 | M37: 45864.896 | R37: 1271.2 | S37: 1135
B38: 110.0182.019 | C38: EKO XS EG6 WH A55 | D38: основная | E38: 550 | F38: белый | G38: 470/750 | H38: 43 ДБ | I38: сенсорное | J38: 2 галоген. | K38: 862.4 | L38: 35358.4 | M38: 28286.72 | R38: 784 | S38: 700
B39: 110.0182.020 | C39: EKO XS EG6 BK A55 | D39: основная | E39: 550 | F39: черный | G39: 470/750 | H39: 43 ДБ | I39: сенсорное | J39: 2 галоген. | K39: 862.4 | L39: 35358.4 | M39: 28286.72 | R39: 784 | S39: 700
B40: 110.0256.169 | C40: BLACK TIE BRS WH A80 | D40: основная | E40: 800 | F40: белый | G40: 860/1360 | H40: 39ДБ | I40: сенсорное | J40: 2 LED | K40: 1355.2 | L40: 55563.2 | M40: 44450.56 | R40: 1232 | S40: 1100
B41: 110.0256.170 | C41: BLACK TIE BRS BK A80 | D41: основная | E41: 800 | F41: черный | G41: 860/1360 | H41: 39ДБ | I41: сенсорное | J41: 2 LED | K41: 1355.2 | L41: 55563.2 | M41: 44450.56 | R41: 1232 | S41: 1100
B42: 110.0256.173 | C42: DISCOVERY ACT EG8 X A90 | D42: Начало 2013! | E42: 900 | F42: нерж.сталь, | G42: 645/1035 | H42: 32 Дб | I42: электронное | J42: 2 галоген. | K42: 1540 | L42: 63140 | M42: 50512 | R42: 1400 | S42: 1250
B43: 110.0157.146 | C43: ORIZZONTE PLUS EG8 X A60 ACTIVE | D43: основная | E43: 600 | F43: нерж.сталь, | G43: 645/1030 | H43: 44ДБ | I43: электронное | J43: 2 галоген. | K43: 1016.4 | L43: =K43*$L$8 -> 41672.4 | M43: =L43*(1+$L$2) -> 33337.92 | R43: 924 | S43: 825
B44: 110.0157.145 | C44: ORIZZONTE PLUS EG8 X A90 ACTIVE | D44: основная | E44: 900 | F44: нерж.сталь, | G44: 645/1030 | H44: 44ДБ | I44: электронное | J44: 2 галоген. | K44: 1078 | L44: 44198 | M44: 35358.4 | R44: 980 | S44: 875
B45: 110.0085.497 | C45: ORIZZONTE PLUS VETRO EG8 X/VBK A60 LOGIC | D45: основная | E45: 600 | F45: нерж.сталь, черное стекло | G45: 645/1030 | H45: 44ДБ | I45: электронное | J45: 2 галоген. | K45: 1207.36 | L45: 49501.76 | M45: 39601.408 | R45: 1097.6 | S45: 980
B46: 110.0157.147 | C46: ORIZZONTE PLUS VETRO EG8 X/VBK A90 LOGIC | D46: основная | E46: 900 | F46: нерж.сталь, черное стекло | G46: 645/1030 | H46: 44ДБ | I46: электронное | J46: 2 галоген. | K46: 1232 | L46: 50512 | M46: 40409.6 | R46: 1120 | S46: 1000
B47: 110.0085.498 | C47: ORIZZONTE PLUS VETRO EG8 X/VW A90 LOGIC | D47: основная | E47: 900 | F47: нерж.сталь, белое стекло | G47: 645/1030 | H47: 44ДБ | I47: электронное | J47: 2 галоген. | K47: 1355.2 | L47: 55563.2 | M47: 44450.56 | R47: 1232 | S47: 1100
B48: 110.0255.503 | C48: ALMA EG6 CREAM F32 | D48: основная | E48: 320 | F48: кремовый | H48: 50 Дб | I48: электронное | J48: LED | K48: 1355.2 | L48: 55563.2 | M48: 44450.56 | R48: 1232 | S48: 1100
B49: 110.0156.629 | C49: CASSIOPEA EG8 X/V A50 ACTIVE | D49: основная | E49: 500 | F49: нерж.сталь, белое стекло | G49: 590/960 | H49: 44ДБ | I49: электронное | J49: 4 галоген.+ лампы днев.освещения | K49: 1921.92 | L49: =K49*$L$8 -> 78798.72 | M49: =L49*(1+$L$2) -> 63038.976 | R49: 1747.2 | S49: 1560
B50: 110.0156.630 | C50: GLORY PRO X/V A 60 LOGIC | D50: основная | E50: 600 | F50: нерж.сталь, белое стекло | G50: 750/1200 | H50: 39ДБ | I50: электронное | J50: 2 галоген.+ лампы днев.освещения | K50: 1749.44 | L50: 71727.04 | M50: 57381.632 | R50: 1590.4 | S50: 1420
B51: 110.0156.631 | C51: MAIN PRO X A60 LOGIC | D51: 60 дней | E51: 600 | F51: нерж.сталь | G51: 750/1200 | H51: 39ДБ | I51: электронное | J51: 2 галоген. | K51: 1404.48 | L51: 57583.68 | M51: 46066.944 | R51: 1276.8 | S51: 1140
B52: 110.0182.256 | C52: FLOW IX 37 | D52: основная | E52: 370 | F52: нерж.сталь | G52: 800/1280 | H52: 50ДБ | I52: пъезо-сенсор | J52: 2 LED | K52: 1047.2 | L52: 42935.2 | M52: 34348.16 | R52: 952 | S52: 850
B53: 110.0182.257 | C53: FLOW GLOSS WH 37 | D53: основная | E53: 370 | F53: белый | G53: 800/1280 | H53: 50ДБ | I53: пъезо-сенсор | J53: 2 LED | K53: 1151.92 | L53: 47228.72 | M53: 37782.976 | R53: 1047.2 | S53: 935
B54: 110.0156.633 | C54: CYLINDRA GLOSS EG8 W A37 ELN | D54: основная | E54: 370 | F54: белый | G54: 590/950 | H54: 44ДБ | I54: электронное | J54: 4 галоген. | K54: 1047.2 | L54: 42935.2 | M54: 34348.16 | R54: 952 | S54: 850
B55: 110.0156.632 | C55: CYLINDRA EG8 X A37 H890 | D55: основная | E55: 370 | F55: нерж.сталь | G55: 590/950 | H55: 44Дб | I55: электронное | J55: 4 галоген. | K55: 948.64 | L55: 38894.24 | M55: 31115.392 | R55: 862.4 | S55: 770
B56: 110.0156.637 | C56: CUBIA GLOSS EG8 WH A45 ACT | D56: 60 дней | E56: 450 | F56: белый | G56: 675/1080 | H56: 40ДБ | I56: электронное | J56: 2 галоген. | K56: 942.48 | L56: 38641.68 | M56: 30913.344 | R56: 856.8 | S56: 765
B57: 110.0156.644 | C57: CUBIA GLOSS EG8 WH A60 ACT | D57: 60 дней | E57: 600 | F57: белый | G57: 675/1080 | H57: 40ДБ | I57: электронное | J57: 2 галоген. | K57: 1047.2 | L57: 42935.2 | M57: 34348.16 | R57: 952 | S57: 850
B58: 110.0156.634 | C58: CUBIA EG8 X A 45 ACTIVE | D58: основная | E58: 450 | F58: нерж.сталь | G58: 675/1080 | H58: 40ДБ | I58: электронное | J58: 2 галоген. | K58: 837.76 | L58: 34348.16 | M58: 27478.528 | R58: 761.6 | S58: 680
B59: 110.0156.635 | C59: CUBIA EG8 X A 60 ACTIVE | D59: основная | E59: 600 | F59: нерж.сталь | G59: 675/1080 | H59: 40ДБ | I59: электронное | J59: 2 галоген. | K59: 874.72 | L59: 35863.52 | M59: 28690.816 | R59: 795.2 | S59: 710
B60: 110.0156.636 | C60: CUBIA EG8 X A 90 ACTIVE | D60: 60 дней | E60: 600 | F60: нерж.сталь | G60: 675/1080 | H60: 40ДБ | I60: электронное | J60: 2 галоген. | K60: 1047.2 | L60: 42935.2 | M60: 34348.16 | R60: 952 | S60: 850
B61: 110.0156.646 | C61: SCREEN EG8 X/V BK A75 ACTIVE | D61: основная | E61: 750 | F61: нерж.сталь, чёрное стекло | G61: 645/1030 | H61: 40ДБ | I61: электронное | J61: галоген. + неон | K61: 1256.64 | L61: 51522.24 | M61: 41217.792 | R61: 1142.4 | S61: 1020
B62: 110.0156.647 | C62: SCREEN EG8 X/V W A75 ACTIVE | D62: основная | E62: 750 | F62: нерж.сталь, белое стекло | G62: 645/1030 | H62: 40ДБ | I62: электронное | J62: галоген. + неон | K62: 1256.64 | L62: 51522.24 | M62: 41217.792 | R62: 1142.4 | S62: 1020
B63: 110.0076.536 | C63: REFLEX 3РН X A90 LOGIC | D63: вывод из программы | E63: 900 | F63: нерж.сталь, зерк. стекло | G63: 765/1225 | H63: 32ДБ | I63: электронное | J63: 3 LED | K63: 1601.6 | L63: 65665.6 | M63: 52532.48 | R63: 1456 | S63: 1300
B64: 110.0255.504 | C64: REFLEX ACT EG8 X/V A90 | D64: основная | E64: 90 | F64: нерж.сталь, зерк. стекло | G64: 765/1226 | H64: 32ДБ | I64: электронное | J64: 3 LED | K64: 1971.2 | L64: 80819.2 | M64: 64655.36 | R64: 1792 | S64: 1600
B65: 110.0256.175 | C65: PRETTY ACT EG8 X A90 | D65: 60 дней | E65: 900 | F65: нерж.сталь | G65: 680/1090 | H65: 32ДБ | I65: электронное | J65: 2 LED | K65: 1170.4 | L65: =K65*$L$8 -> 47986.4 | M65: =L65*(1+$L$2) -> 38389.12 | R65: 1064 | S65: 950
B66: 110.0183.603 | C66: PRETTY PLUS Х90 SILK-SM | D66: вывод из программы | E66: 900 | F66: нерж.сталь | G66: 710/1150 | H66: 37ДБ | I66: пmезо-сенсор | J66: 2 LED | K66: 985.6 | L66: =K66*$L$8 -> 40409.6 | M66: =L66*(1+$L$2) -> 32327.68 | R66: 896 | S66: 800
B67: 110.0256.172 | C67: LOOK BRS X/V A90 | D67: основная | E67: 900 | F67: нерж.сталь, зерк. стекло | G67: 860/1360 | H67: 39ДБ | I67: электронное | J67: 2 LED | K67: 862.4 | L67: =K67*$L$8 -> 35358.4 | M67: =L67*(1+$L$2) -> 28286.72 | R67: 784 | S67: 700
B68: 110.0156.533 | C68: PURITY PRO X/V W A90 ACTIVE | D68: вывод из программы | E68: 900 | F68: нерж.сталь, белое стекло | G68: 830/1450 | H68: 40ДБ | I68: электронное | J68: 2 галоген. | K68: 1601.6 | L68: 65665.6 | M68: 52532.48 | R68: 1456 | S68: 1300
B69: 110.0156.617 | C69: PLANIA EG8 X/BK A60 | D69: вывод из программы | E69: 600 | F69: черный | G69: 600/960 | H69: 47ДБ | I69: электронное | J69: 2 галоген. | K69: 1416.8 | L69: 58088.8 | M69: 46471.04 | R69: 1288 | S69: 1150
B70: 110.0156.622 | C70: PLANIA EG8 X/WH A60 | D70: вывод из программы | E70: 600 | F70: белый | G70: 600/960 | H70: 47ДБ | I70: электронное | J70: 2 галоген. | K70: 1416.8 | L70: 58088.8 | M70: 46471.04 | R70: 1288 | S70: 1150
B71: 110.0156.613 | C71: LIFE EG10 BK A80 | D71: Распродажа, далее 60 дней | E71: 800 | F71: черный | G71: 850/1360 | H71: 49ДБ | I71: электронное | J71: неоновое | K71: 1663.2 | L71: 68191.2 | M71: 54552.96 | R71: 1512 | S71: 1350
B72: 110.0156.625 | C72: GALAXY X/V BK A75 | D72: Распродажа, далее 60 дней | E72: 750 | F72: черный | G72: 865/1380 | H72: 53ДБ | I72: электронное | J72: 2 LED | K72: 1478.4 | L72: 60614.4 | M72: 48491.52 | R72: 1344 | S72: 1200
B73: 110.0156.626 | C73: GALAXY X/V WH A75 | D73: Распродажа, далее 60 дней | E73: 750 | F73: белый | G73: 865/1380 | H73: 53ДБ | I73: электронное | J73: 2 LED | K73: 1478.4 | L73: 60614.4 | M73: 48491.52 | R73: 1344 | S73: 1200
A74: Островные | K74: 0
B75: 110.0256.174 | C75: PRETTY ISOLA ACT EG8 X A90 | D75: 60 дней | E75: 900 | F75: нерж.сталь | G75: 680/1080 | H75: 32 Дб | I75: электронное | J75: 4 LED | K75: 1601.6 | L75: =K75*$L$8 -> 65665.6 | M75: =L75*(1+$L$2) -> 52532.48 | R75: 1456 | S75: 1300
B76: 110.0256.176 | C76: LOOK ISOLA BRS X/V A90 | D76: 60 дней | E76: 90 | F76: нерж.сталь | G76: 860/1375 | H76: 39 Дб | I76: сенсорное | J76: 4 LED | K76: 1355.2 | L76: 55563.2 | M76: 44450.56 | R76: 1232 | S76: 1100
B77: 110.0157.065 | C77: TEKNA ISOLA | D77: 60 дней | E77: 750 | F77: нерж.сталь | G77: 890/1425 | H77: 47ДБ | I77: электронное | J77: 2 LED | K77: =R77+R77*10/100 -> 2285.36 | L77: 93699.76 | M77: 74959.808 | R77: =S77+S77*12/100 -> 2077.6 | S77: 1855
B78: 110.0156.608 | C78: DROP EG8 WP A48 | D78: основная | E78: 480 | F78: перламутр | G78: 460/730 | H78: 44ДБ | I78: электромеханическое | J78: 2 LED | K78: 2094.4 | L78: 85870.4 | M78: 68696.32 | R78: 1904 | S78: 1700
B79: 110.0067.892 | C79: DROP EG8 BKL A48 | D79: основная | E79: 480 | F79: черный | G79: 460/730 | H79: 44ДБ | I79: электромеханическое | J79: 2 LED | K79: 2217.6 | L79: 90921.6 | M79: 72737.28 | R79: 2016 | S79: 1800
B80: 110.0067.891 | C80: DROP EG8 RDR A48 | D80: основная | E80: 480 | F80: красный | G80: 460/730 | H80: 44ДБ | I80: электромеханическое | J80: 2 LED | K80: 2217.6 | L80: 90921.6 | M80: 72737.28 | R80: 2016 | S80: 1800
B81: 110.0157.062 | C81: CASSIOPEA ISOLA EG10 X/V A50 | D81: основная | E81: 500 | F81: нерж.сталь, стекло | G81: 750/1200 | H81: 47ДБ | I81: электронное | J81: 4 галоген.+ лампы днев.освещения | K81: 2273.04 | L81: 93194.64 | M81: 74555.712 | R81: 2066.4 | S81: 1845
B82: 110.0157.063 | C82: GLORY ISOLA PRO X/V A60 LOGIC | D82: основная | E82: 600 | F82: нерж.сталь, стекло | G82: 750/1200 | H82: 39ДБ | I82: электронное (сенсор) | J82: 4 галоген.+ лампы днев.освещения | K82: 2445.52 | L82: 100266.32 | M82: 80213.056 | R82: 2223.2 | S82: 1985
B83: 110.0157.064 | C83: MAIN ISOLA PRO X A60 LOGIC | D83: 60 дней | E83: 600 | F83: нерж.сталь, | G83: 750/1200 | H83: 39ДБ | I83: электронное (сенсор) | J83: 4 галоген.+ лампы днев.освещения | K83: 1921.92 | L83: 78798.72 | M83: 63038.976 | R83: 1747.2 | S83: 1560
B84: 110.0182.258 | C84: FLOW ISOLA X A37 | D84: основная | E84: 370 | F84: нерж.сталь, | G84: 750/1280 | H84: 45ДБ | I84: пьезо-сенсор | J84: 2 LED | K84: 1305.92 | L84: 53542.72 | M84: 42834.176 | R84: 1187.2 | S84: 1060
B85: 110.0183.627 | C85: FLOW ISOLA GLOSS WH A37 | D85: основная | E85: 370 | F85: белый | G85: 750/1280 | H85: 45ДБ | I85: пьезо-сенсор | J85: 2 LED | K85: 1422.96 | L85: 58341.36 | M85: 46673.088 | R85: 1293.6 | S85: 1155
B86: 110.0157.066 | C86: CYLINDRA ISOLA EG10 X A37 | D86: основная | E86: 370 | F86: нерж.сталь, | G86: 750/1200 | H86: 47ДБ | I86: электронное | J86: 4 галоген. | K86: 1188.88 | L86: =K86*$L$8 -> 48744.08 | M86: =L86*(1+$L$2) -> 38995.264 | R86: 1080.8 | S86: 965
B87: 110.0157.067 | C87: CYLINDRA ISOLA GLOSS EG10 W A37 | D87: основная | E87: 370 | F87: белый | G87: 750/1200 | H87: 47ДБ | I87: электронное | J87: 4 галоген. | K87: 1293.6 | L87: 53037.6 | M87: 42430.08 | R87: 1176 | S87: 1050
B88: 110.0157.071 | C88: CUBIA CLOSS ISOLA EG10 WH A45 ACTIVE | D88: 60 дней | E88: 450 | F88: белый | G88: 770/1080 | H88: 52ДБ | I88: электронное | J88: 4 галоген. | K88: 1324.4 | L88: 54300.4 | M88: 43440.32 | R88: 1204 | S88: 1075
B89: 110.0157.072 | C89: CUBIA CLOSS ISOLA EG10 WH A60 ACTIVE | D89: 60 дней | E89: 600 | F89: белый | G89: 770/1080 | H89: 52ДБ | I89: электронное | J89: 4 галоген. | K89: 1361.36 | L89: 55815.76 | M89: 44652.608 | R89: 1237.6 | S89: 1105
B90: 110.0157.068 | C90: CUBIA ISOLA EG10 X A45 ACTIVE | D90: 60 дней | E90: 450 | F90: нерж.сталь, | G90: 770/1080 | H90: 52ДБ | I90: электронное | J90: 4 галоген. | K90: 1188.88 | L90: 48744.08 | M90: 38995.264 | R90: 1080.8 | S90: 965
B91: 110.0157.069 | C91: CUBIA ISOLA EG10 X A60 ACTIVE | D91: 60 дней | E91: 600 | F91: нерж.сталь, | G91: 770/1080 | H91: 52ДБ | I91: электронное | J91: 4 галоген. | K91: 1225.84 | L91: 50259.44 | M91: 40207.552 | R91: 1114.4 | S91: 995
B92: 110.0157.070 | C92: CUBIA ISOLA EG10 X A90 ACTIVE | D92: 60 дней | E92: 900 | F92: нерж.сталь, | G92: 770/1080 | H92: 52ДБ | I92: электронное | J92: 4 галоген. | K92: 1743.28 | L92: 71474.48 | M92: 57179.584 | R92: 1584.8 | S92: 1415
A93: Встраиваемые | K93: 0
B94: 110.0255.505 | C94: FABULA | D94: основная | E94: 800 | F94: нерж.сталь/чёрное стекло | G94: 750/1200 | H94: 36 Дб | I94: электронное | J94: LED | K94: 1971.2 | L94: =K94*$L$8 -> 80819.2 | M94: =L94*(1+$L$2) -> 64655.36 | R94: 1792 | S94: 1600
B95: 110.0255.963 | C95: HEAVEN GLASS PRO WH A 100 | D95: 60 дней | E95: 1000 х 500 | F95: белое стекло | G95: 855/1370 | H95: 32ДБ | I95: электронное | J95: 2 неоновые | K95: 2094.4 | L95: 85870.4 | M95: 68696.32 | R95: 1904 | S95: 1700
B96: 110.0183.609 110.0250.358 | C96: HEAVEN PRO X A100 | D96: 60 дней | E96: 1000 х 500 | F96: нерж.сталь, | G96: 855/1370 | H96: 32ДБ | I96: электронное | J96: 4 галоген. | K96: 1724.8 | L96: 70716.8 | M96: 56573.44 | R96: 1568 | S96: 1400
B97: 110.0183.610 110.0250.359 | C97: HEAVEN PRO X A140 | D97: 60 дней | E97: 1400 х 600 | F97: нерж.сталь, | G97: 855/1370 | H97: 32ДБ | I97: электронное | J97: 4 галоген. | K97: 1909.6 | L97: 78293.6 | M97: 62634.88 | R97: 1736 | S97: 1550
B98: 110.0182.356 | C98: VELVET X/V A60 | D98: основная | E98: 600 | F98: нерж.сталь/стекло | G98: 550/900 | H98: 50ДБ | I98: электронное | J98: 2 галоген. | K98: 535.92 | L98: 21972.72 | M98: 17578.176 | R98: 487.2 | S98: 435
B99: 110.0182.357 | C99: VELVET X/V A90 | D99: основная | E99: 900 | F99: нерж.сталь/стекло | G99: 550/900 | H99: 50ДБ | I99: электронное | J99: 2 галоген. | K99: 597.52 | L99: 24498.32 | M99: 19598.656 | R99: 543.2 | S99: 485
B100: 110.0182.358 | C100: CLEAN X A60 FB PREMIUM | D100: основная | E100: 600 | F100: нерж.сталь/стекло | G100: 550/900 | H100: 50ДБ | I100: электронное | J100: 2 галоген. | K100: 505.12 | L100: 20709.92 | M100: 16567.936 | R100: 459.2 | S100: 410
B101: 110.0182.359 | C101: CLEAN X A90 FB PREMIUM | D101: основная | E101: 900 | F101: нерж.сталь/стекло | G101: 550/900 | H101: 50ДБ | I101: электронное | J101: 2 галоген. | K101: 566.72 | L101: 23235.52 | M101: 18588.416 | R101: 515.2 | S101: 460
A103: Смоленск, ул. Индустриальная, 2. "Дом Мебели", салон «EВРODOM» 3-й (последний) этаж, ТЕЛЕФОНЫ: 8(4812) 20 94 28, 8(920) 312 34 56

Sheet Kitchen Studio
L2: скидка
K3: kitchen studio | L3: -0.2 | N3: kitchen studio
A8: Прайс-лист на кухонные вытяжки "FABER" с 11/02/2013 | K8: Курс EUR* - | L8: =PREMIUM!L8 -> 41 | N8: Курс EUR* -
A9: Фото | B9: FUN-code new FUN-code | C9: Наименование | D9: Условия поставки | E9: Ширина,мм | F9: ЦВЕТ | G9: Производительность, куб/час | H9: Мин. уровень шума,ДБ | I9: Управление | J9: Освещение | K9: Цена розница (EUR) | L9: Цена розница (руб.) | M9: Цена закупки, (руб.) | N9: Цена розница (EUR)
B11: Пристенные
B12: 110.0255.509 | C12: TITANO EG8 X/BK A60 | D12: основная | E12: 600 | F12: черный | G12: 670/1070 | H12: 47ДБ | I12: сенсорное | J12: 2 LED | K12: =N12+N12*12/100 -> 784 | L12: =K12*$L$8 -> 32144 | M12: =L12*(1+$L$3) -> 25715.2 | N12: 700
B13: 110.0255.499 | C13: BIOS EG6 BK/XS F32 | D13: основная | E13: 320 | F13: черный | G13: 330/530 | H13: 50 Дб | I13: электронное | J13: 2 LED | K13: =N13+N13*12/100 -> 817.6 | L13: =K13*$L$8 -> 33521.6 | M13: =L13*(1+$L$3) -> 26817.28 | N13: 730
B14: 110.0255.500 | C14: BIOS EG6 RD/XS F32 | D14: основная | E14: 320 | F14: красный | G14: 330/530 | H14: 50 Дб | I14: электронное | J14: 2 LED | K14: 817.6 | L14: 33521.6 | M14: 26817.28 | N14: 730
B15: 110.0255.501 | C15: BIOS EG6 WH F32 | D15: основная | E15: 320 | F15: белый | G15: 330/530 | H15: 50 Дб | I15: электронное | J15: 2 LED | K15: 817.6 | L15: 33521.6 | M15: 26817.28 | N15: 730
B16: 110.0255.502 | C16: BIOS EG6 X F32 | D16: основная | E16: 320 | F16: нерж.сталь | G16: 330/530 | H16: 50 Дб | I16: электронное | J16: 2 LED | K16: 784 | L16: 32144 | M16: 25715.2 | N16: 700
B17: 110.0255.510 | C17: LITHOS EG6 BK A45 | D17: основная | E17: 450 | F17: черный | G17: 590/645 | H17: 44 ДБ | I17: электронное | J17: 2 галоген. | K17: 425.6 | L17: 17449.6 | M17: 13959.68 | N17: 380
B18: 110.0255.511 | C18: LITHOS EG6 WH CORIAN A45 | D18: основная | E18: 450 | F18: Белый Corian | G18: 590/645 | H18: 44 ДБ | I18: электронное | J18: 2 галоген. | K18: 425.6 | L18: 17449.6 | M18: 13959.68 | N18: 380
B19: 110.0255.512 | C19: LITHOS EG6 YWI A45 | D19: основная | E19: 450 | F19: слоновая кость | G19: 590/645 | H19: 44 ДБ | I19: электронное | J19: 2 галоген. | K19: 425.6 | L19: 17449.6 | M19: 13959.68 | N19: 380
B20: 110.0255.513 | C20: LITHOS EG6 WH A45 | D20: основная | E20: 450 | F20: белый | G20: 590/645 | H20: 44 ДБ | I20: электронное | J20: 2 галоген. | K20: 425.6 | L20: 17449.6 | M20: 13959.68 | N20: 380
B21: 110.0252.427 | C21: COCKTAIL BK A80 EG8 | D21: основная | E21: 800 | F21: чёрное стекло | G21: 700/980 | H21: 47 Дб | I21: сенсорное | J21: 2 галоген. | K21: 670.88 | L21: =K21*$L$8 -> 27506.08 | M21: =L21*(1+$L$3) -> 22004.864 | N21: 599
B22: 110.0252.428 | C22: COCKTAIL WH A80 EG8 | D22: основная | E22: 800 | F22: белое стекло | G22: 700/980 | H22: 47 Дб | I22: сенсорное | J22: 2 галоген. | K22: 670.88 | L22: 27506.08 | M22: 22004.864 | N22: 599
B23: 110.0157.031 110.0255.546 | C23: STILUX EG8 X A60 LOGIC | D23: основная | E23: 600 | F23: нерж.сталь, зерк. стекло | G23: 680/1100 | H23: 44ДБ | I23: электронное | J23: 2 галоген. | K23: 504 | L23: 20664 | M23: 16531.2 | N23: 450
B24: 110.0157.032 110.0255.547 | C24: STILUX EG8 X A90 LOGIC | D24: основная | E24: 900 | F24: нерж.сталь, зерк. стекло | G24: 680/1100 | H24: 44ДБ | I24: электронное | J24: 2 галоген. | K24: 543.2 | L24: 22271.2 | M24: 17816.96 | N24: 485
B25: 110.0255.551 | C25: PLATIS HFH X F90 | D25: 60 дней | E25: 900 | F25: нерж.сталь | G25: 400/640 | H25: 50 Дб | I25: электронное | J25: 2 LED | K25: 593.6 | L25: 24337.6 | M25: 19470.08 | N25: 530
B26: 110.0255.552 | C26: FIT HFH X/V F90 | D26: 60 дней | E26: 900 | F26: нерж.сталь | G26: 400/640 | H26: 50 Дб | I26: электронное | J26: 2 LED | K26: =N26+N26*12/100 -> 560 | L26: 22960 | M26: 18368 | N26: 500
B27: 110.0256.171 | C27: SIDE BRS X/V A90 | D27: 60 дней | E27: 900 | F27: нерж.сталь | G27: 840/1340 | H27: 51 Дб | I27: электронное | J27: 2 LED | K27: 526.4 | L27: 21582.4 | M27: 17265.92 | N27: 470
B28: 110.0255.516 | C28: CLEAR AF X/V A90 | D28: 60 дней | E28: 900 | F28: нерж.сталь | G28: 490/790 | H28: 43 Дб | I28: электронное | J28: 2 LED | K28: информация будет позже
B29: 110.0255.548 | C29: GLOVE AF X A90 | D29: основная | E29: 900 | F29: нерж.сталь | G29: 530/850 | H29: 43 Дб | I29: электронное | J29: 2 LED | K29: 403.2 | L29: =K29*$L$8 -> 16531.2 | M29: =L29*(1+$L$3) -> 13224.96 | N29: 360
B30: 110.0255.549 | C30: GLOVE AF X A60 | D30: основная | E30: 600 | F30: нерж.сталь | G30: 530/850 | H30: 43 Дб | I30: электронное | J30: 2 LED | K30: 369.6 | L30: =K30*$L$8 -> 15153.6 | M30: =L30*(1+$L$3) -> 12122.88 | N30: 330
B31: 110.0184.796 | C31: ECLIPSE EG8 X A37 | D31: основная | E31: 370 | F31: нерж.сталь | G31: 590/950 | H31: 44 ДБ | I31: электронное | J31: 2 галоген. | K31: 504 | L31: =K31*$L$8 -> 20664 | M31: =L31*(1+$L$3) -> 16531.2 | N31: 450
B32: 110.0154.561 | C32: SCACCO XV WH A60 | D32: основная | E32: 600 | F32: нерж.сталь, белое стекло | G32: 645/1030 | H32: 35ДБ | I32: электронное | J32: 2 галоген. | K32: 924 | L32: =K32*$L$8 -> 37884 | M32: =L32*(1+$L$3) -> 30307.2 | N32: 825
B33: 110.0082.928 | C33: SCACCO XV WH A90 | D33: основная | E33: 900 | F33: нерж.сталь, белое стекло | G33: 645/1030 | H33: 35ДБ | I33: электронное | J33: 2 галоген. | K33: 980 | L33: 40180 | M33: 32144 | N33: 875
B34: 110.0154.560 | C34: SCACCO XV BK A60 | D34: основная | E34: 600 | F34: нерж.сталь, черное стекло | G34: 645/1030 | H34: 35ДБ | I34: электронное | J34: 2 галоген. | K34: 924 | L34: 37884 | M34: 30307.2 | N34: 825
B35: 110.0082.927 | C35: SCACCO XV BK A90 | D35: основная | E35: 900 | F35: нерж.сталь, черное стекло | G35: 645/1030 | H35: 35ДБ | I35: электронное | J35: 2 галоген. | K35: 980 | L35: 40180 | M35: 32144 | N35: 875
B36: 110.0082.926 | C36: SCACCO X A90 | D36: основная | E36: 900 | F36: нерж.сталь | G36: 645/1030 | H36: 35ДБ | I36: электронное | J36: 2 галоген. | K36: 812 | L36: 33292 | M36: 26633.6 | N36: 725
B37: 110.0157.024 | C37: TRATTO/SP EG10 X/V A90 | D37: 60 дней | E37: 900 | F37: нерж.сталь, стекло | G37: 800/1280 | H37: 46ДБ | I37: электронное | J37: 2 галоген. | K37: 554.4 | L37: 22730.4 | M37: 18184.32 | N37: 495
B38: 110.0157.029 | C38: GLASSY/SP X/V A60 | D38: основная | E38: 600 | F38: нерж.сталь, стекло | G38: 400/730 | H38: 48ДБ | I38: электронное | J38: 2 галоген. | K38: 315.84 | L38: =K38*$L$8 -> 12949.44 | M38: =L38*(1+$L$3) -> 10359.552 | N38: 282
B39: 110.0157.030 | C39: GLASSY/SP X/V A90 | D39: основная | E39: 900 | F39: нерж.сталь, стекло | G39: 400/730 | H39: 48ДБ | I39: электронное | J39: 2 галоген. | K39: 377.44 | L39: 15475.04 | M39: =L39*(1+$L$3) -> 12380.032 | N39: 337
B40: 110.0157.039 110.0255.541 | C40: STILO/SP EG8 X A60 | D40: основная | E40: 600 | F40: нерж.сталь | G40: 705/1130 | H40: 40ДБ | I40: электронное | J40: 2 галоген. | K40: 364 | L40: 14924 | M40: =L40*(1+$L$3) -> 11939.2 | N40: 325
B41: 110.0157.040 110.0255.542 | C41: STILO/SP EG8 X A90 | D41: основная | E41: 900 | F41: нерж.сталь | G41: 705/1130 | H41: 40ДБ | I41: электронное | J41: 2 галоген. | K41: 392 | L41: 16072 | M41: =L41*(1+$L$3) -> 12857.6 | N41: 350
B42: 110.0157.041 110.0255.543 | C42: STILO/SP EG8 X A120 | D42: 60 дней | E42: 1200 | F42: нерж.сталь | G42: 705/1130 | H42: 40ДБ | I42: электронное | J42: 3 галоген. | K42: 453.6 | L42: 18597.6 | M42: =L42*(1+$L$3) -> 14878.08 | N42: 405
B43: 110.0157.042 | C43: STILO SX/SP A90, левая | D43: основная | E43: 900 | F43: нерж.сталь, | G43: 440/730 | H43: 48ДБ | I43: электромеханическое | J43: 2 лампы накаливания | K43: 399.84 | L43: 16393.44 | M43: =L43*(1+$L$3) -> 13114.752 | N43: 357
B44: 110.0157.044 | C44: STILO SX/SP A120, левая | D44: 60 дней | E44: 1200 | F44: нерж.сталь, | G44: 440/730 | H44: 48ДБ | I44: электромеханическое | J44: 2 лампы накаливания | K44: 523.04 | L44: 21444.64 | M44: 17155.712 | N44: 467
B45: 110.0157.043 | C45: STILO DX/SP A90, правая | D45: основная | E45: 900 | F45: нерж.сталь, | G45: 440/730 | H45: 48ДБ | I45: электромеханическое | J45: 2 лампы накаливания | K45: 399.84 | L45: 16393.44 | M45: 13114.752 | N45: 357
B46: 110.0157.045 | C46: STILO DX/SP A120, правая | D46: 60 дней | E46: 1200 | F46: нерж.сталь, | G46: 440/730 | H46: 48ДБ | I46: электромеханическое | J46: 2 лампы накаливания | K46: 523.04 | L46: 21444.64 | M46: 17155.712 | N46: 467
B47: 110.0194.796 | C47: BRIO GM A90 | D47: основная | E47: 900 | F47: серый | G47: 420/670 | H47: 46ДБ | I47: электромеханическое | J47: 2 лампы накаливания | K47: 492.8 | L47: 20204.8 | M47: 16163.84 | N47: 440
B48: 110.0194.798 | C48: BRIO NT + INCA KIT | D48: основная | E48: 900 | F48: неокраш. | G48: 420/670 | H48: 46Дб | I48: электромеханическое | J48: 2 лампы накаливания | K48: 492.8 | L48: 20204.8 | M48: 16163.84 | N48: 440
B49: 110.0157.028 | C49: GLASSY/SP AL/V A90 | D49: вывод из программы | E49: 900 | F49: алюминий, стекло | G49: 400/730 | H49: 48ДБ | I49: электронное | J49: 2 галоген. | K49: 336 | L49: 13776 | M49: =L49*(1+$L$3) -> 11020.8 | N49: 300
B50: Островные
B51: 110.0255.550 | C51: PLATIS ISOLA HFH X F90 | D51: 60 дней | E51: 900 | F51: нерж.сталь, | G51: 550/880 | H51: 51 Дб | I51: электронное | J51: 2 LED | K51: 963.2 | L51: =K51*$L$8 -> 39491.2 | M51: =L51*(1+$L$3) -> 31592.96 | N51: 860
B52: 110.0157.074 | C52: TRATTO ISOLA/SP EG8 X/V A90 | D52: основная | E52: 900 | F52: нерж.сталь, стекло | G52: 660/1100 | H52: 42Дб | I52: электронное | J52: 4 галоген. | K52: 784 | L52: =K52*$L$8 -> 32144 | M52: =L52*(1+$L$3) -> 25715.2 | N52: 700
B53: 110.0157.076 | C53: GLASSY ISOLA/SP EG8 X/V A90 | D53: основная | E53: 900 | F53: нерж.сталь, стекло | G53: 660/1100 | H53: 42Дб | I53: электронное | J53: 4 галоген. | K53: 728 | L53: =K53*$L$8 -> 29848 | M53: =L53*(1+$L$3) -> 23878.4 | N53: 650
B54: 110.0157.079 110.0255.544 | C54: STILO ISOLA/SP EG8 X A90 | D54: 60 дней | E54: 900 | F54: нерж.сталь, | G54: 660/1100 | H54: 42Дб | I54: электронное | J54: 4 галоген. | K54: 954.24 | L54: =K54*$L$8 -> 39123.84 | M54: =L54*(1+$L$3) -> 31299.072 | N54: 852
B55: 110.0157.081 110.0255.545 | C55: STILO ISOLA/SP EG8 X A120 | D55: 60 дней | E55: 120 | F55: нерж.сталь, | G55: 660/1100 | H55: 42Дб | I55: электронное | J55: 4 галоген. | K55: 1046.08 | L55: =K55*$L$8 -> 42889.28 | M55: =L55*(1+$L$3) -> 34311.424 | N55: 934
B56: Угловые | K56: 0
B57: 110.0157.082 | C57: PREMIO ANGOLO/SP EG8 X/V A100 | D57: 60 дней | E57: 1000/1000 | F57: нерж.сталь, стекло | G57: 695/1130 | H57: 44Дб | I57: электромеханическое | J57: 4 галоген. | K57: 1538.88 | L57: =K57*$L$8 -> 63094.08 | M57: =L57*(1+$L$3) -> 50475.264 | N57: 1374
B58: 110.0157.085 | C58: SOLARIS EG8 X A100 | D58: 60 дней | E58: 1000/1000 | F58: нерж.сталь, | G58: 705/1150 | H58: 41Дб | I58: электромеханическое | J58: 4 галоген. | K58: 1015.84 | L58: =K58*$L$8 -> 41649.44 | M58: =L58*(1+$L$3) -> 33319.552 | N58: 907
B59: 110.0157.084 | C59: STILO ANGOLO/SP EG8 X A100 | D59: 60 дней | E59: 1000/1000 | F59: нерж.сталь, | G59: 695/1130 | H59: 44ДБ | I59: электромеханическое | J59: 4 галоген. | K59: 1015.84 | L59: =K59*$L$8 -> 41649.44 | M59: =L59*(1+$L$3) -> 33319.552 | N59: 907
B60: Встариваемые | K60: 0
B61: 110.0157.132 110.0257.947 | C61: STILNOVO PLUS X A60 | D61: основная | E61: 600 | F61: нерж.сталь, | G61: 680/1100 | H61: 43ДБ | I61: электромеханическое | J61: 2 галоген. | K61: 461.44 | L61: =K61*$L$8 -> 18919.04 | M61: =L61*(1+$L$3) -> 15135.232 | N61: 412
B62: 110.0157.133 110.0257.948 | C62: STILNOVO PLUS X A90 | D62: основная | E62: 900 | F62: нерж.сталь, | G62: 680/1100 | H62: 43ДБ | I62: электромеханическое | J62: 3 галоген. | K62: 523.04 | L62: 21444.64 | M62: 17155.712 | N62: 467
B63: 110.0157.134 110.0257.949 | C63: STILNOVO PLUS X A120 | D63: 60 дней | E63: 1200 | F63: нерж.сталь, | G63: 680/1100 | H63: 43ДБ | I63: электромеханическое | J63: 3 галоген. | K63: 616 | L63: 25256 | M63: 20204.8 | N63: 550
B64: 110.0157.135 | C64: INTRA GR A60 | D64: 60 дней | E64: 600 | F64: нерж.сталь, | G64: 410/700 | H64: 49ДБ | I64: электромеханическое | J64: 2 лампы накаливания | K64: 280 | L64: 11480 | M64: 9184 | N64: 250
B65: 110.0157.136 | C65: INTRA GR A90 | D65: 60 дней | E65: 900 | F65: нерж.сталь, | G65: 410/700 | H65: 49ДБ | I65: электромеханическое | J65: 2 лампы накаливания | K65: 302.4 | L65: 12398.4 | M65: 9918.72 | N65: 270
B66: 110.0157.129 | C66: SCRIGNO EG8 X A56 | D66: основная | E66: 600 | F66: нерж.сталь, | G66: 620/1030 | H66: 39ДБ | I66: электромеханическое | J66: 2 галоген. | K66: 492.8 | L66: 20204.8 | M66: 16163.84 | N66: 440
B67: 110.0157.130 | C67: SCRIGNO EG8 X A86 | D67: основная | E67: 900 | F67: нерж.сталь, | G67: 620/1030 | H67: 39ДБ | I67: электромеханическое | J67: 2 галоген. | K67: 554.4 | L67: 22730.4 | M67: 18184.32 | N67: 495
B68: 110.0157.121 | C68: OMNIA GR/X A60 | D68: основная | E68: 600 | F68: нерж.сталь, серый | G68: 480/780 | H68: 45 Дб | I68: электромеханическое | J68: 2 лампочки дневного света | K68: 308 | L68: 12628 | M68: 10102.4 | N68: 275
B69: 110.0157.122 | C69: OMNIA GR/X A90 | D69: основная | E69: 900 | F69: нерж.сталь, серый | G69: 480/780 | H69: 45 Дб | I69: электромеханическое | J69: 2 лампочки дневного света | K69: 338.24 | L69: 13867.84 | M69: 11094.272 | N69: 302
B70: 110.0184.818 | C70: MAXIMA EG8 AM/X A60 | D70: основная | E70: 600 | F70: нерж.сталь, алюминий | G70: 680/1100 | H70: 44 Дб | I70: электромеханическое | J70: 2 галоген. | K70: 227.36 | L70: 9321.76 | M70: 7457.408 | N70: 203
B71: 110.0184.820 | C71: MAXIMA EG8 AM/X A90 | D71: основная | E71: 900 | F71: нерж.сталь, алюминий | G71: 680/1100 | H71: 44 Дб | I71: электромеханическое | J71: 2 галоген. | K71: 258.72 | L71: 10607.52 | M71: 8486.016 | N71: 231
B72: 110.0256.164 | C72: INCA LUX EG8 X A70 | D72: основная | E72: 700 | F72: нерж.сталь, | G72: 660/1050 | H72: 41 Дб | I72: электронное | J72: 2 галоген. | K72: 414.4 | L72: 16990.4 | M72: 13592.32 | N72: 370
B73: 110.0256.165 | C73: INCA LUX EG8 X A52 | D73: основная | E73: 520 | F73: нерж.сталь, | G73: 660/1050 | H73: 41 Дб | I73: электронное | J73: 2 галоген. | K73: 392 | L73: 16072 | M73: 12857.6 | N73: 350
B74: 110.0157.113 110.0255.519 | C74: INCA SMART C GR A52 | D74: основная | E74: 520 | F74: серый | G74: 290/470 | H74: 48ДБ | I74: электромеханическое | J74: 2 лампы накаливания | K74: 107.52 | L74: 4408.32 | M74: 3526.656 | N74: 96
B75: 110.0157.114 110.0255.520 | C75: INCA SMART C GR A70 | D75: основная | E75: 700 | F75: серый | G75: 290/470 | H75: 48Дб | I75: электромеханическое | J75: 2 лампы накаливания | K75: 119.84 | L75: 4913.44 | M75: 3930.752 | N75: 107
B76: 110.0157.117. 110.0255.521 | C76: INCA SMART HC X A52 | D76: основная | E76: 520 | F76: нерж.сталь, | G76: 390/650 | H76: 54ДБ | I76: электромеханическое | J76: 2 лампы накаливания | K76: 132.16 | L76: 5418.56 | M76: 4334.848 | N76: 118
B77: 110.0157.118 110.0255.522 | C77: INCA SMART HC X A70 | D77: основная | E77: 700 | F77: нерж.сталь, | G77: 390/650 | H77: 54ДБ | I77: электромеханическое | J77: 2 лампы накаливания | K77: =N77+N77*12/100 -> 150.08 | L77: 6153.28 | M77: 4922.624 | N77: 134
B78: 5974707 110.0255.523 | C78: INCA SMART HCS X A52 | D78: основная | E78: 520 | F78: нерж.сталь, | G78: 390/650 | H78: 54Дб | I78: электромеханическое | J78: 2 галоген. | K78: 184.8 | L78: 7576.8 | M78: 6061.44 | N78: 165
B79: 5974708 110.0255.524 | C79: INCA SMART HCS X A70 | D79: основная | E79: 700 | F79: нерж.сталь, | G79: 390/650 | H79: 54ДБ | I79: электромеханическое | J79: 2 галоген. | K79: 196 | L79: 8036 | M79: 6428.8 | N79: 175
B80: 110.0157.119 | C80: INCA PLUS HIP X A52 FB EXP | D80: основная | E80: 520 | F80: нерж.сталь, | G80: 580/950 | H80: 49 Дб | I80: электромеханическое | J80: 2 лампы накаливания | K80: 168 | L80: 6888 | M80: 5510.4 | N80: 150
B81: 110.0157.120 | C81: INCA PLUS HIP X A70 FB EXP | D81: основная | E81: 700 | F81: нерж.сталь, | G81: 580/950 | H81: 49 Дб | I81: электромеханическое | J81: 2 лампы накаливания | K81: 179.2 | L81: 7347.2 | M81: 5877.76 | N81: 160
B82: 110.0154.582 | C82: INCA PLUS HIP HAL X A52 FB EXP | D82: основная | E82: 520 | F82: нерж.сталь, | G82: 580/950 | H82: 49 Дб | I82: электромеханическое | J82: 2 галоген. | K82: 196 | L82: 8036 | M82: 6428.8 | N82: 175
B83: 110.0154.583 | C83: INCA PLUS HIP HAL X A70 FB EXP | D83: основная | E83: 700 | F83: нерж.сталь, | G83: 580/950 | H83: 49 Дб | I83: электромеханическое | J83: 2 галоген. | K83: 207.2 | L83: 8495.2 | M83: 6796.16 | N83: 185
A85: Смоленск, ул. Индустриальная, 2. "Дом Мебели", салон «EВРODOM» 3-й (последний) этаж, ТЕЛЕФОНЫ: 8(4812) 20 94 28, 8(920) 312 34 56

Sheet Standart
A1: Смоленск, ул. Индустриальная, 2. "Дом Мебели", салон «EВРODOM» 3-й (последний) этаж, ТЕЛЕФОНЫ: 8(4812) 20 94 28, 8(920) 312 34 56
D2: При заказе кухни - скидка 10%
L3: скидка
K4: standard | L4: -0.15 | N4: standard
A8: Прайс-лист на кухонные вытяжки "FABER" с 11/02/2013 | K8: Курс EUR* - | L8: =PREMIUM!L8 -> 41 | N8: Курс EUR* -
A9: Фото | B9: FUN-code new FUN-code | C9: Наименование | D9: Складская программа | E9: Ширина,мм | F9: ЦВЕТ | G9: Производительность, куб/час | H9: Мин. уровень шума,ДБ | I9: Управление | J9: Освещение | K9: Цена розница (EUR) | L9: Цена розница (руб.) | M9: Цена закупки, (руб.) | N9: Цена розница (EUR)
B11: Пристенные
B12: 110.0205.822 | C12: COCKTAIL BK F80 ( угольные фильтры в комплекте, декоративные короба - опция, в комплект не входят) | D12: основная | E12: 800 | F12: чёрное стекло | G12: 570/750 | H12: 43Дб | I12: сенсерное | J12: 2 галоген. | K12: =N12+N12*12/100 -> 548.8 | L12: =K12*$L$8 -> 22500.8 | M12: =L12*(1+$L$4) -> 19125.68 | N12: 490
B13: 110.0205.831 | C13: COCKTAIL WH F80 ( угольные фильтры в комплекте, декоративные короба - опция, в комплект не входят) | D13: основная | E13: 800 | F13: белое стекло | G13: 570/750 | H13: 43Дб | I13: сенсерное | J13: 2 галоген. | K13: =N13+N13*12/100 -> 560 | L13: 22960 | M13: 19516 | N13: 500
B14: 110.0256.810 | C14: COCKTAIL XS BK A55 ( декоративные короба - в комплекте, угольный фильтр - опция ) | D14: основная | E14: 550 | F14: чёрное стекло | G14: 570/750 | H14: 43Дб | I14: сенсерное | J14: 2 галоген. | K14: 504 | L14: 20664 | M14: 17564.4 | N14: 450
B15: 110.0256.821 | C15: COCKTAIL XS WH A55 ( декоративные короба - в комплекте, угольный фильтр -опция ) | D15: основная | E15: 550 | F15: белое стекло | G15: 570/750 | H15: 43Дб | I15: сенсерное | J15: 2 галоген. | K15: 518.56 | L15: 21260.96 | M15: 18071.816 | N15: 463
B16: 110.0205.833 | C16: COCKTAIL XS BK F55 ( угольные фильтры в комплекте, декоративные короба - опция, в комплект не входят) | D16: основная | E16: 550 | F16: чёрное стекло | G16: 570/750 | H16: 43Дб | I16: сенсерное | J16: 2 галоген. | K16: 504 | L16: 20664 | M16: 17564.4 | N16: 450
B17: 110.0205.838 | C17: COCKTAIL XS WH F55 ( угольные фильтры в комплекте, декоративные короба - опция, в комплект не входят) | D17: основная | E17: 550 | F17: белое стекло | G17: 570/750 | H17: 43Дб | I17: сенсерное | J17: 2 галоген. | K17: 515.2 | L17: 21123.2 | M17: 17954.72 | N17: 460
B18: 110.0185.261 | C18: RAY X/V A60 | D18: основная | E18: 600 | F18: нерж.сталь, стекло | G18: 410/730 | H18: 46ДБ | I18: Электронное | J18: 2 галоген. | K18: 280 | L18: 11480 | M18: 9758 | N18: 250
B19: 110.0184.760 | C19: RAY X/V A90 | D19: основная | E19: 900 | F19: нерж.сталь, стекло | G19: 410/730 | H19: 46ДБ | I19: Электронное | J19: 2 галоген. | K19: 302.4 | L19: 12398.4 | M19: 10538.64 | N19: 270
B20: 110.0184.757 | C20: NICE X/V A60 | D20: основная | E20: 600 | F20: нерж.сталь, стекло | G20: 410/730 | H20: 46ДБ | I20: Электронное | J20: 2 галоген. | K20: 268.8 | L20: 11020.8 | M20: 9367.68 | N20: 240
B21: 110.0184.759 | C21: NICE X/V A90 | D21: основная | E21: 900 | F21: нерж.сталь, стекло | G21: 410/730 | H21: 46ДБ | I21: Электронное | J21: 2 галоген. | K21: 291.2 | L21: 11939.2 | M21: 10148.32 | N21: 260
B22: 110.0157.023 | C22: TRATTO/SP X/V A90 | D22: 60 дней | E22: 900 | F22: нерж.сталь, стекло | G22: 440/730 | H22: 46Дб | I22: кнопочное | J22: 2 галоген. | K22: 324.8 | L22: =K22*$L$8 -> 13316.8 | M22: =L22*(1+$L$4) -> 11319.28 | N22: 290
B23: 110.0157.033 110.0255.535 | C23: STILO/SP X A60 | D23: основная | E23: 600 | F23: нерж.сталь | G23: 385/650 | H23: 47ДБ | I23: электронное | J23: 2 лампы накаливания | K23: 280 | L23: 11480 | M23: 9758 | N23: 250
B24: 110.0157.034 110.0255.537 | C24: STILO/SP X A90 | D24: основная | E24: 900 | F24: нерж.сталь | G24: 385/650 | H24: 47ДБ | I24: электронное | J24: 2 лампы накаливания | K24: 311.36 | L24: 12765.76 | M24: 10850.896 | N24: 278
B25: 110.0157.035 110.0255.540 | C25: STILO/SP X A120 | D25: 60 дней | E25: 1200 | F25: нерж.сталь | G25: 385/650 | H25: 47ДБ | I25: электронное | J25: 2 лампы накаливания | K25: 400.96 | L25: 16439.36 | M25: 13973.456 | N25: 358
B26: 110.0184.794 | C26: GEMMA PB X A60 | D26: основная | E26: 600 | F26: нерж.сталь, | G26: 380/650 | H26: 47ДБ | I26: кнопочное | J26: 2 лампы накаливания | K26: 224 | L26: =K26*$L$8 -> 9184 | M26: =L26*(1+$L$4) -> 7806.4 | N26: 200
B27: 110.0184.795 | C27: GEMMA PB X A90 | D27: основная | E27: 900 | F27: нерж.сталь, | G27: 380/650 | H27: 47ДБ | I27: кнопочное | J27: 2 лампы накаливания | K27: 252 | L27: =K27*$L$8 -> 10332 | M27: =L27*(1+$L$4) -> 8782.2 | N27: 225
B28: 110.0187.361 | C28: GEMMA PB X A120 | D28: 60 дней | E28: 1200 | F28: нерж.сталь, | G28: 380/650 | H28: 47ДБ | I28: кнопочное | J28: 3 лампы накаливания | K28: 369.6 | L28: =K28*$L$8 -> 15153.6 | M28: =L28*(1+$L$4) -> 12880.56 | N28: 330
B29: 110.0194.843 | C29: CONO X A60 | D29: основная | E29: 600 | F29: нерж.сталь, | G29: 420/670 | H29: 46ДБ | I29: слайдер | J29: 2 лампы накаливания | K29: 211.68 | L29: 8678.88 | M29: 7377.048 | N29: 189
B30: 110.0194.844 | C30: CONO X A90 | D30: 60 дней | E30: 900 | F30: нерж.сталь, | G30: 420/670 | H30: 46ДБ | I30: слайдер | J30: 2 лампы накаливания | K30: 285.6 | L30: 11709.6 | M30: 9953.16 | N30: 255
B31: 110.0157.048 | C31: TENDER X A60 | D31: основная | E31: 600 | F31: нерж.сталь, | G31: 420/730 | H31: 46ДБ | I31: слайдер | J31: 2 лампы накаливания | K31: 190.4 | L31: =K31*$L$8 -> 7806.4 | M31: =L31*(1+$L$4) -> 6635.44 | N31: 170
B32: 110.0157.049 | C32: TENDER X A90 | D32: основная | E32: 900 | F32: нерж.сталь, | G32: 420/730 | H32: 46ДБ | I32: слайдер | J32: 2 лампы накаливания | K32: 212.8 | L32: =K32*$L$8 -> 8724.8 | M32: =L32*(1+$L$4) -> 7416.08 | N32: 190
B33: 110.0157.053 | C33: SYNTHESIS X A60 PB | D33: основная | E33: 600 | F33: нерж.сталь | G33: 420/730 | H33: 46ДБ | I33: кнопочное | J33: 2 лампы накаливания | K33: 230.72 | L33: 9459.52 | M33: 8040.592 | N33: 206
B34: 110.0157.055 | C34: SYNTHESIS W A60 PB | D34: основная | E34: 600 | F34: белый | G34: 420/730 | H34: 46ДБ | I34: кнопочное | J34: 2 лампы накаливания | K34: 221.76 | L34: 9092.16 | M34: 7728.336 | N34: 198
B35: 110.0157.057 | C35: SYNTHESIS BK A60 PB | D35: 60 дней | E35: 600 | F35: черный | G35: 420/730 | H35: 46ДБ | I35: кнопочное | J35: 2 лампы накаливания | K35: 221.76 | L35: 9092.16 | M35: 7728.336 | N35: 198
B36: 110.0157.054 | C36: SYNTHESIS X A90 PB | D36: 60 дней | E36: 900 | F36: нерж.сталь | G36: 420/730 | H36: 46ДБ | I36: кнопочное | J36: 2 лампы накаливания | K36: 276.64 | L36: 11342.24 | M36: 9640.904 | N36: 247
B37: 110.0157.056 | C37: SYNTHESIS W A90 PB | D37: 60 дней | E37: 900 | F37: белый | G37: 420/730 | H37: 46ДБ | I37: кнопочное | J37: 2 лампы накаливания | K37: 271.04 | L37: 11112.64 | M37: 9445.744 | N37: 242
B38: 110.0157.058 | C38: SYNTHESIS BK A90 PB | D38: 60 дней | E38: 900 | F38: черный | G38: 420/730 | H38: 46ДБ | I38: кнопочное | J38: 2 лампы накаливания | K38: 271.04 | L38: 11112.64 | M38: 9445.744 | N38: 242
B39: 110.0194.846 | C39: STRIP W A60 | D39: основная | E39: 600 | F39: белый | G39: 420/730 | H39: 46ДБ | I39: кнопочное | J39: 2 лампы накаливания | K39: 144.48 | L39: 5923.68 | M39: 5035.128 | N39: 129
B40: 110.0194.847 | C40: STRIP W A90 | D40: 60 дней | E40: 900 | F40: белый | G40: 420/730 | H40: 46ДБ | I40: кнопочное | J40: 2 лампы накаливания | K40: 193.76 | L40: =K40*$L$8 -> 7944.16 | M40: =L40*(1+$L$4) -> 6752.536 | N40: 173
B41: 110.0194.848 | C41: STRIP BK A60 | D41: основная | E41: 600 | F41: черный | G41: 420/730 | H41: 46ДБ | I41: кнопочное | J41: 2 лампы накаливания | K41: 144.48 | L41: 5923.68 | M41: 5035.128 | N41: 129
B42: 110.0194.849 | C42: STRIP BK A90 | D42: 60 дней | E42: 900 | F42: черный | G42: 420/730 | H42: 46ДБ | I42: кнопочное | J42: 2 лампы накаливания | K42: 193.76 | L42: =K42*$L$8 -> 7944.16 | M42: =L42*(1+$L$4) -> 6752.536 | N42: 173
B43: 110.0184.831 | C43: STRIP X A60 | D43: основная | E43: 600 | F43: нерж.сталь | G43: 420/730 | H43: 46ДБ | I43: кнопочное | J43: 2 лампы накаливания | K43: 160.16 | L43: 6566.56 | M43: 5581.576 | N43: 143
B44: 110.0184.832 | C44: STRIP X A90 | D44: 60 дней | E44: 900 | F44: нерж.сталь | G44: 420/730 | H44: 46ДБ | I44: кнопочное | J44: 2 лампы накаливания | K44: 209.44 | L44: 8587.04 | M44: 7298.984 | N44: 187
B45: 110.0058.107 110.0267.618 | C45: VALUE PB 4 2L X A60 | D45: основная | E45: 600 | F45: нерж.сталь, | G45: 420/730 | H45: 50Дб | I45: кнопочное | J45: 2 лампы накаливания | K45: 140 | L45: =K45*$L$8 -> 5740 | M45: 4879 | N45: 125
B46: 110.0058.109 110.0267.619 | C46: VALUE PB 4 2L W A60 | D46: основная | E46: 600 | F46: белый | G46: 420/730 | H46: 50Дб | I46: кнопочное | J46: 2 лампы накаливания | K46: 123.2 | L46: =K46*$L$8 -> 5051.2 | M46: 4293.52 | N46: 110
B47: 110.0085.017 110.0267.620 | C47: VALUE PB 4 2L BK A60 | D47: основная | E47: 600 | F47: черный | G47: 420/730 | H47: 50Дб | I47: кнопочное | J47: 2 лампы накаливания | K47: 123.2 | L47: =K47*$L$8 -> 5051.2 | M47: 4293.52 | N47: 110
B48: 110.0071.522 110.0267.642 | C48: VALUE SL 4 2L X A60 | D48: основная | E48: 600 | F48: нерж.сталь, | G48: 420/730 | H48: 50Дб | I48: слайдер | J48: 1 лампа накаливания | K48: 128.8 | L48: =K48*$L$8 -> 5280.8 | M48: 4488.68 | N48: 115
B49: 110.0071.525 110.0267.643 | C49: VALUE SL 4 2L W A60 | D49: основная | E49: 600 | F49: белый | G49: 420/730 | H49: 50Дб | I49: слайдер | J49: 1 лампа накаливания | K49: 112 | L49: =K49*$L$8 -> 4592 | M49: 3903.2 | N49: 100
B50: Встраиваемые | K50: 0
B51: 630001240 110.0261.456 | C51: FLEXA HIP LG/X A60,м/кассета | D51: основная | E51: 600 | F51: серый/нерж | G51: 350/650 | H51: 54Дб | I51: электромеханическое | J51: 2 лампы накаливания | K51: 140 | L51: =K51*$L$8 -> 5740 | M51: =L51*(1+$L$4) -> 4879 | N51: 125
B52: 630002277 110.0261.455 | C52: FLEXA HIP LG/X A50 м/кассета | D52: основная | E52: 500 | F52: серый/нерж | G52: 350/650 | H52: 54Дб | I52: электромеханическое | J52: 2 лампы накаливания | K52: 134.4 | L52: =K52*$L$8 -> 5510.4 | M52: =L52*(1+$L$4) -> 4683.84 | N52: 120
B53: 630002275 110.0261.457 | C53: FLEXA HIP W A50, м/кассета | D53: основная | E53: 500 | F53: белый | G53: 350/650 | H53: 54Дб | I53: электромеханическое | J53: 2 лампы накаливания | K53: 128.8 | L53: =K53*$L$8 -> 5280.8 | M53: =L53*(1+$L$4) -> 4488.68 | N53: 115
B54: 630000075 110.0261.458 | C54: FLEXA HIP W A60, м/кассета | D54: основная | E54: 600 | F54: белый | G54: 350/650 | H54: 54Дб | I54: электромеханическое | J54: 2 лампы накаливания | K54: 132.16 | L54: =K54*$L$8 -> 5418.56 | M54: =L54*(1+$L$4) -> 4605.776 | N54: 118
B55: 630002276 110.0261.459 | C55: FLEXA HIP BK A50, м/кассета | D55: основная | E55: 500 | F55: черный | G55: 350/650 | H55: 54Дб | I55: электромеханическое | J55: 2 лампы накаливания | K55: 128.8 | L55: 5280.8 | M55: 4488.68 | N55: 115
B56: 630000076 110.0261.460 | C56: FLEXA HIP BK A60, м/кассета | D56: основная | E56: 600 | F56: черный | G56: 350/650 | H56: 54Дб | I56: электромеханическое | J56: 2 лампы накаливания | K56: 132.16 | L56: 5418.56 | M56: 4605.776 | N56: 118
B57: 630006229 110.0260.821 | C57: FLEXA M6/40 AM/INOX A50, м/кассета | D57: основная | E57: 500 | F57: алюм/нерж | G57: 280/450 | H57: 49ДБ | I57: электромеханическое | J57: 2 лампы накаливания | K57: 95.2 | L57: 3903.2 | M57: 3317.72 | N57: 85
B58: 630006230 110.0260.728 | C58: FLEXA M6/40 AM/INOX A60, м/кассета | D58: основная | E58: 600 | F58: алюм/нерж | G58: 280/450 | H58: 49ДБ | I58: электромеханическое | J58: 2 лампы накаливания | K58: 99.68 | L58: 4086.88 | M58: 3473.848 | N58: 89
B59: 630005379 | C59: FLEXA BK A60, м/кассета | D59: основная | E59: 600 | F59: черный | G59: 280/450 | H59: 49ДБ | I59: электромеханическое | J59: 2 лампы накаливания | K59: 96.32 | L59: 3949.12 | M59: 3356.752 | N59: 86
B60: 630005959 110.0260.729 | C60: FLEXA W A50, м/кассета | D60: основная | E60: 500 | F60: белый | G60: 280/450 | H60: 49ДБ | I60: электромеханическое | J60: 2 лампы накаливания | K60: 92.96 | L60: 3811.36 | M60: 3239.656 | N60: 83
B61: 630005378 110.0260.726 | C61: FLEXA W A60, м/кассета | D61: основная | E61: 600 | F61: белый | G61: 280/450 | H61: 49ДБ | I61: электромеханическое | J61: 2 лампы накаливания | K61: 96.32 | L61: 3949.12 | M61: 3356.752 | N61: 86
B62: 630000357 110.0262.267 | C62: FLEXA VITRO W A50,м/кассета | D62: основная | E62: 500 | F62: белый | G62: 280/450 | H62: 46 ДБ | I62: электромеханическое | J62: 2 лампы накаливания | K62: 96.32 | L62: 3949.12 | M62: 3356.752 | N62: 86
B63: 630000358 | C63: FLEXA VITRO BK A50,м/кассет | D63: основная | E63: 500 | F63: черный | G63: 280/450 | H63: 46 ДБ | I63: электромеханическое | J63: 2 лампы накаливания | K63: 96.32 | L63: =K63*$L$8 -> 3949.12 | M63: 3356.752 | N63: 86
B64: 630000360 110.0262.268 | C64: FLEXA VITRO W A60,м/кассета | D64: основная | E64: 600 | F64: белый | G64: 280/450 | H64: 46 ДБ | I64: электромеханическое | J64: 2 лампы накаливания | K64: 103.04 | L64: 4224.64 | M64: 3590.944 | N64: 92
B65: 630000361 | C65: FLEXA VITRO BK A60,м/кассет | D65: основная | E65: 600 | F65: черный | G65: 280/450 | H65: 46 ДБ | I65: электромеханическое | J65: 2 лампы накаливания | K65: 103.04 | L65: 4224.64 | M65: 3590.944 | N65: 92
B66: 5907003 (110.0194.840) | C66: MILLENNIO 1M W A50 | D66: вывод из программы | E66: 500 | F66: белый | G66: 210/350 | H66: 48ДБ | I66: электромеханическое | J66: 2 лампы накаливания | K66: 61.6 | L66: 2525.6 | M66: 2146.76 | N66: 55
B67: 5907001 (110.0194.837) | C67: MILLENNIO 1M W A60 | D67: вывод из программы | E67: 600 | F67: белый | G67: 210/350 | H67: 48ДБ | I67: электромеханическое | J67: 2 лампы накаливания | K67: 61.6 | L67: 2525.6 | M67: 2146.76 | N67: 55
B68: 5907002 (110.0194.838) | C68: MILLENNIO 1M X A50 | D68: вывод из программы | E68: 500 | F68: нерж.сталь | G68: 210/350 | H68: 48ДБ | I68: электромеханическое | J68: 2 лампы накаливания | K68: 78.4 | L68: 3214.4 | M68: 2732.24 | N68: 70
B69: 5907000 (110.0194,831) | C69: MILLENNIO 1M X A60 | D69: вывод из программы | E69: 600 | F69: нерж.сталь | G69: 210/350 | H69: 48ДБ | I69: электромеханическое | J69: 2 лампы накаливания | K69: 78.4 | L69: 3214.4 | M69: 2732.24 | N69: 70
B70: 5907004 (110.0194.841) | C70: MILLENNIO 1M BK A50 | D70: вывод из программы | E70: 500 | F70: черный | G70: 210/350 | H70: 48ДБ | I70: электромеханическое | J70: 2 лампы накаливания | K70: 61.6 | L70: 2525.6 | M70: 2146.76 | N70: 55
B71: 5907005 (110.0194.842) | C71: MILLENNIO 1M BK A60 | D71: вывод из программы | E71: 600 | F71: черный | G71: 210/350 | H71: 48ДБ | I71: электромеханическое | J71: 2 лампы накаливания | K71: 61.6 | L71: 2525.6 | M71: 2146.76 | N71: 55
B72: 110.0156.712 | C72: 741 PB X A50 | D72: основная | E72: 500 | F72: нерж.сталь | G72: 240/400 | H72: 58 ДБ | I72: кнопочное | J72: 1 лампа накаливания | K72: 88.48 | L72: =K72*$L$8 -> 3627.68 | M72: =L72*(1+$L$4) -> 3083.528 | N72: 79
B73: 110.0156.713 | C73: 741 PB X A60 | D73: основная | E73: 600 | F73: нерж.сталь | G73: 240/400 | H73: 58 ДБ | I73: кнопочное | J73: 1 лампа накаливания | K73: 88.48 | L73: 3627.68 | M73: 3083.528 | N73: 79
B74: 110.0156.710 | C74: 741 PB W A50 | D74: основная | E74: 500 | F74: белый | G74: 240/400 | H74: 58 ДБ | I74: кнопочное | J74: 1 лампа накаливания | K74: 76.16 | L74: 3122.56 | M74: 2654.176 | N74: 68
B75: 110.0156.711 | C75: 741 PB W A60 | D75: основная | E75: 600 | F75: белый | G75: 240/400 | H75: 58 ДБ | I75: кнопочное | J75: 1 лампа накаливания | K75: 76.16 | L75: 3122.56 | M75: 2654.176 | N75: 68
B76: 110.0158.095 | C76: 741 W F60 F.M. (VIS) в комплекте с угольным и жировым металлическим фильтром!!! | D76: основная | E76: 600 | F76: белый | G76: 200/380 | H76: 44 ДБ | I76: слайдер | J76: 1 лампа накаливания | K76: 67.2 | L76: 2755.2 | M76: 2341.92 | N76: 60
B77: 110.0158.144 | C77: 741 Х F60 F.M. (VIS) в комплекте с угольным и жировым металлическим фильтром!!! | D77: основная | E77: 600 | F77: нерж.сталь | G77: 200/380 | H77: 44 ДБ | I77: слайдер | J77: 1 лампа накаливания | K77: =N77+N77*12/100 -> 80.64 | L77: =K77*$L$8 -> 3306.24 | M77: =L77*(1+$L$4) -> 2810.304 | N77: 72
B78: 110.0156.707 | C78: 741 BASE X A50 | D78: основная | E78: 500 | F78: нерж.сталь | G78: 170/280 | H78: 46 ДБ | I78: слайдер | J78: 1 лампа накаливания | K78: 67.2 | L78: 2755.2 | M78: 2341.92 | N78: 60
B79: 110.0156.708 | C79: 741 BASE X A60 | D79: основная | E79: 600 | F79: нерж.сталь | G79: 170/280 | H79: 46 ДБ | I79: слайдер | J79: 1 лампа накаливания | K79: 67.2 | L79: 2755.2 | M79: 2341.92 | N79: 60
B80: 110.0156.699 | C80: 741 BASE BK A50 | D80: основная | E80: 500 | F80: черный | G80: 170/280 | H80: 46 ДБ | I80: слайдер | J80: 1 лампа накаливания | K80: 58.24 | L80: 2387.84 | M80: 2029.664 | N80: 52
B81: 110.0156.700 | C81: 741 BASE BK A60 | D81: основная | E81: 600 | F81: черный | G81: 170/280 | H81: 46 ДБ | I81: слайдер | J81: 1 лампа накаливания | K81: 58.24 | L81: 2387.84 | M81: 2029.664 | N81: 52
B82: 110.0156.703 | C82: 741 BASE W A50 | D82: основная | E82: 500 | F82: белый | G82: 170/280 | H82: 46 ДБ | I82: слайдер | J82: 1 лампа накаливания | K82: 58.24 | L82: 2387.84 | M82: 2029.664 | N82: 52
B83: 110.0156.704 | C83: 741 BASE W A60 | D83: основная | E83: 600 | F83: белый | G83: 170/280 | H83: 46 ДБ | I83: слайдер | J83: 1 лампа накаливания | K83: 58.24 | L83: 2387.84 | M83: 2029.664 | N83: 52
A84: Смоленск, ул. Индустриальная, 2. "Дом Мебели", салон «EВРODOM» 3-й (последний) этаж, ТЕЛЕФОНЫ: 8(4812) 20 94 28, 8(920) 312 34 56

Sheet Country
L2: скидка
K3: kitchen studio | L3: -0.15 | N3: kitchen studio
A8: Прайс-лист на кухонные вытяжки "FABER" с 11/02/2013 | K8: Курс EUR* - | L8: =PREMIUM!L8 -> 41 | N8: Курс EUR* -
A9: Фото | B9: FUN-code | C9: Наименование | D9: Складская программа | E9: Ширина,мм | F9: ЦВЕТ | G9: Производительность, куб/час | H9: Мин. уровень шума,ДБ | I9: Управление | J9: Освещение | K9: Цена розница (EUR) | L9: Цена розница (руб.) | M9: Цена закупки, (руб.) | N9: Цена розница (EUR)
A11: РУСТИКА / КАНТРИ-600
B12: 110.0157.154 | C12: Вытяжка RANCH 60, корпус белый | D12: основная | E12: 600 | F12: белый | G12: 420/670 | H12: 46дб | I12: электромеханическое | J12: 2 лампы накаливания | K12: =N12+N12*12/100 -> 276.64 | L12: =K12*$L$8 -> 11342.24 | M12: =L12*(1+$L$3) -> 9640.904 | N12: 247
B13: 110.0157.155 | C13: Вытяжка RANCH 60, корпус венецианская штукатурка | D13: основная | E13: 600 | F13: венецианская штукатурка | G13: 420/670 | H13: 46дб | I13: электромеханическое | J13: 2 лампы накаливания | K13: =N13+N13*12/100 -> 313.6 | L13: 12857.6 | M13: 10928.96 | N13: 280
B14: 112.0157.179 | C14: Рамка (60С1),неокраш/ольха RANCH | E14: 600 | K14: 91.84 | L14: 3765.44 | M14: 3200.624 | N14: 82
B15: 112.0157.180 | C15: Рамка (60С1),неокраш/ясень RANCH | E15: 600 | K15: 91.84 | L15: 3765.44 | M15: 3200.624 | N15: 82
B16: 112.0157.182 | C16: Рамка (60С1), орех для RANCH | E16: 600 | K16: 123.2 | L16: 5051.2 | M16: 4293.52 | N16: 110
B17: 112.0157.183 | C17: Рамка (60С1), вишня для RANCH | E17: 600 | K17: 123.2 | L17: 5051.2 | M17: 4293.52 | N17: 110
B18: 112.0157.185 | C18: Рамка (60С2),неокраш/ольха RANCH | E18: 600 | K18: 91.84 | L18: 3765.44 | M18: 3200.624 | N18: 82
B19: 112.0157.186 | C19: Рамка (60С2),неокраш/ясень RANCH | E19: 600 | K19: 91.84 | L19: 3765.44 | M19: 3200.624 | N19: 82
B20: 112.0157.187 | C20: Рамка (60С3),неокраш/ольха RANCH | E20: 600 | K20: 123.2 | L20: 5051.2 | M20: 4293.52 | N20: 110
B21: 112.0157.188 | C21: Рамка (60С3),неокраш/ясень RANCH | E21: 600 | K21: 123.2 | L21: 5051.2 | M21: 4293.52 | N21: 110
B22: 112.0157.189 | C22: Рамка (60С3), орех для RANCH | E22: 600 | K22: 153.44 | L22: 6291.04 | M22: 5347.384 | N22: 137
B23: 112.0157.190 | C23: Рамка (60С4),неокраш/ольха RANCH | E23: 600 | K23: 123.2 | L23: 5051.2 | M23: 4293.52 | N23: 110
B24: 112.0157.191 | C24: Рамка (60С4),неокраш/ясень RANCH | E24: 600 | K24: 123.2 | L24: 5051.2 | M24: 4293.52 | N24: 110
B25: 112.0157.192 | C25: Рамка (60С4),орех RANCH | E25: 600 | K25: 153.44 | L25: 6291.04 | M25: 5347.384 | N25: 137
A26: РУСТИКА / КАНТРИ-900 | K26: 0
B27: 110.0157.165 | C27: Вытяжка AGORA 90, корпус белый | D27: основная | E27: 900 | F27: белый | G27: 420/670 | H27: 46дб | I27: электромеханическое | J27: 2 лампы накаливания | K27: 492.8 | L27: =K27*$L$8 -> 20204.8 | M27: =L27*(1+$L$3) -> 17174.08 | N27: 440
B28: 110.0157.164 | C28: Вытяжка FARM 90, корпус белый | D28: основная | E28: 900 | F28: белый | G28: 420/670 | H28: 46дб | I28: электромеханическое | J28: 2 лампы накаливания | K28: 399.84 | L28: =K28*$L$8 -> 16393.44 | M28: =L28*(1+$L$3) -> 13934.424 | N28: 357
B29: 110.0157.160 | C29: Вытяжка WEST 90, корпус белый | D29: основная | E29: 900 | F29: белый | G29: 420/670 | H29: 46дб | I29: электромеханическое | J29: 2 лампы накаливания | K29: 369.6 | L29: 15153.6 | M29: 12880.56 | N29: 330
B30: 110.0157.161 | C30: Вытяжка WEST 90, корпус венецианская штукатурка | D30: основная | E30: 900 | F30: венецианская штукатурка | G30: 420/670 | H30: 46дб | I30: электромеханическое | J30: 2 лампы накаливания | K30: 403.2 | L30: 16531.2 | M30: 14051.52 | N30: 360
B31: 110.0157.156 | C31: Вытяжка RANCH 90, корпус белый | D31: основная | E31: 900 | F31: белый | G31: 420/670 | H31: 46дб | I31: электромеханическое | J31: 2 лампы накаливания | K31: 308 | L31: 12628 | M31: 10733.8 | N31: 275
B32: 110.0157.157 | C32: Вытяжка RANCH 90, корпус венецианская штукатурка | D32: основная | E32: 900 | F32: венецианская штукатурка | G32: 420/670 | H32: 46дб | I32: электромеханическое | J32: 2 лампы накаливания | K32: 341.6 | L32: 14005.6 | M32: 11904.76 | N32: 305
B33: 110.0061.993 | C33: Вытяжка RIO WB A90 SC, корпус белый | D33: 60 дней | E33: 900 | F33: белый | G33: 420/670 | H33: 46дб | I33: электромеханическое | J33: 2 лампы накаливания | K33: 392 | L33: 16072 | M33: 13661.2 | N33: 350
B34: 112.0157.195 | C34: Рамка (90С1),неокраш/ольха A/R/W/F | E34: 900 | K34: 123.2 | L34: 5051.2 | M34: 4293.52 | N34: 110
B35: 112.0157.196 | C35: Рамка (90С1),неокраш/ясень A/R/W/F | E35: 900 | K35: 123.2 | L35: 5051.2 | M35: 4293.52 | N35: 110
B36: 112.0157.197 | C36: Рамка (90С1), орех для A/R/W/F | E36: 900 | K36: 184.8 | L36: 7576.8 | M36: 6440.28 | N36: 165
B37: 112.0157.198 | C37: Рамка (90С1), вишня для A/R/W/F | E37: 900 | K37: 184.8 | L37: 7576.8 | M37: 6440.28 | N37: 165
B38: 112.0157.199 | C38: Рамка (90С2),неокраш/ольха A/R/W/F | E38: 900 | K38: 153.44 | L38: 6291.04 | M38: 5347.384 | N38: 137
B39: 112.0157.200 | C39: Рамка (90С2),неокраш/ясень A/R/W/F | E39: 900 | K39: 201.6 | L39: 8265.6 | M39: 7025.76 | N39: 180
B40: 112.0157.201 | C40: Рамка (90С3),неокраш/ольха A/R/W/F | E40: 900 | K40: 153.44 | L40: 6291.04 | M40: 5347.384 | N40: 137
B41: 112.0157.202 | C41: Рамка (90С3),неокраш/ясень A/R/W/F | E41: 900 | K41: 153.44 | L41: 6291.04 | M41: 5347.384 | N41: 137
B42: 112.0157.203 | C42: Рамка (90С3), орех для A/R/W/F | E42: 900 | K42: 215.04 | L42: 8816.64 | M42: 7494.144 | N42: 192
B43: 112.0157.204 | C43: Рамка (90С4),неокраш/ольха A/R/W/F | E43: 900 | K43: 153.44 | L43: 6291.04 | M43: 5347.384 | N43: 137
B44: 112.0157.205 | C44: Рамка (90С4),неокраш/ясень A/R/W/F | E44: 900 | K44: 153.44 | L44: 6291.04 | M44: 5347.384 | N44: 137
B45: 112.0157.206 | C45: Рамка (90С4), орех для A/R/W/F | E45: 900 | K45: 215.04 | L45: 8816.64 | M45: 7494.144 | N45: 192
B46: 112.0157.207 | C46: Рамка (90С5),неокраш/ольха A/R/W/F | E46: 900 | K46: 162.4 | L46: 6658.4 | M46: 5659.64 | N46: 145
B47: 112.0157.208 | C47: Рамка (90С5),неокраш/ясень A/R/W/F | E47: 900 | K47: 162.4 | L47: 6658.4 | M47: 5659.64 | N47: 145
B48: 110.0157.152 | C48: Вытяжка TRENDY 90, корпус белый | D48: основная | E48: 900 | F48: белый | G48: 420/670 | H48: 46дб | I48: электромеханическое | J48: 2 лампы накаливания | K48: 308 | L48: 12628 | M48: 10733.8 | N48: 275
B49: 110.0157.153 | C49: Вытяжка TRENDY 90, корпус венецианская штукатурка | D49: основная | E49: 900 | F49: венецианская штукатурка | G49: 420/670 | H49: 46дб | I49: электромеханическое | J49: 2 лампы накаливания | K49: 341.6 | L49: 14005.6 | M49: 11904.76 | N49: 305
B50: 112.0157.173 | C50: Рамка (90С),неокраш/ольха TRENDY | E50: 900 | K50: 132.16 | L50: 5418.56 | M50: 4605.776 | N50: 118
B51: 112.0157.174 | C51: Рамка (90С),неокраш/ясень TRENDY | E51: 900 | K51: 132.16 | L51: 5418.56 | M51: 4605.776 | N51: 118
B52: 112.0157.176 | C52: Рамка (90С), орех для TRENDY | E52: 900 | K52: 193.76 | L52: 7944.16 | M52: 6752.536 | N52: 173
B53: 112.0157.178 | C53: Рамка (90С), вишня для TRENDY | E53: 900 | K53: 193.76 | L53: 7944.16 | M53: 6752.536 | N53: 173
A54: РУСТИКА / КАНТРИ-1200 | K54: 0
B55: 110.0157.166 | C55: Вытяжка AGORA 120, корпус белый | E55: 1200 | F55: белый | G55: 420/670 | H55: 46дб | I55: электромеханическое | J55: 2 лампы накаливания | K55: 584.64 | L55: =K55*$L$8 -> 23970.24 | M55: =L55*(1+$L$3) -> 20374.704 | N55: 522
B56: 110.0157.158 | C56: Вытяжка RANCH 120, корпус белый | E56: 1200 | F56: белый | G56: 420/670 | H56: 46дб | I56: электромеханическое | J56: 2 лампы накаливания | K56: 461.44 | L56: =K56*$L$8 -> 18919.04 | M56: =L56*(1+$L$3) -> 16081.184 | N56: 412
B57: 110.0157.162 | C57: Вытяжка WEST 120, корпус белый | E57: 1200 | F57: белый | G57: 420/670 | H57: 46дб | I57: электромеханическое | J57: 2 лампы накаливания | K57: 492.8 | L57: =K57*$L$8 -> 20204.8 | M57: =L57*(1+$L$3) -> 17174.08 | N57: 440
B58: 110.0061.994 | C58: Вытяжка RIO WB A120 SC, корпус белый | E58: 1200 | F58: белый | G58: 420/670 | H58: 46дб | I58: электромеханическое | J58: 2 лампы накаливания | K58: 492.8 | L58: =K58*$L$8 -> 20204.8 | M58: =L58*(1+$L$3) -> 17174.08 | N58: 440
B59: 112.0157.209 | C59: Рамка (120С1),неокраш/ольха A/R/W | E59: 1200 | K59: 153.44 | L59: 6291.04 | M59: 5347.384 | N59: 137
B60: 112.0157.210 | C60: Рамка (120С1),неокраш/ясень A/R/W | E60: 1200 | K60: 153.44 | L60: 6291.04 | M60: 5347.384 | N60: 137
B61: 112.0157.211 | C61: Рамка (120С1), орех для A/R/W | E61: 1200 | K61: 215.04 | L61: 8816.64 | M61: 7494.144 | N61: 192
B62: 112.0157.212 | C62: Рамка (120С2), неокраш/ольха A/R/W | E62: 1200 | K62: 184.8 | L62: 7576.8 | M62: 6440.28 | N62: 165
B63: 112.0157.213 | C63: Рамка (120С2), неокраш/ясень A/R/W | E63: 1200 | K63: 184.8 | L63: 7576.8 | M63: 6440.28 | N63: 165
B64: 112.0157.214 | C64: Рамка (120С5),неокраш/ольха A/R/W/F | E64: 1200 | K64: 179.2 | L64: 7347.2 | M64: 6245.12 | N64: 160
B65: 112.0157.215 | C65: Рамка (120С5),неокраш/ясень A/R/W/F | E65: 1200 | K65: 179.2 | L65: 7347.2 | M65: 6245.12 | N65: 160
A66: РУСТИКА / КАНТРИ УГЛОВЫЕ | K66: 0
B67: 110.0157.159 | C67: Вытяжка RANCH ANGOLO, корпус белый | E67: 1000/1000 | F67: белый | G67: 420/670 | H67: 46дб | I67: электромеханическое | J67: 2 лампы накаливания | K67: 523.04 | L67: =K67*$L$8 -> 21444.64 | M67: =L67*(1+$L$3) -> 18227.944 | N67: 467
B68: 112.0157.216 | C68: Рамка (C1) неокраш/ольха RANCH ANG. | K68: 153.44 | L68: 6291.04 | M68: 5347.384 | N68: 137
B69: 112.0157.217 | C69: Рамка (C1) неокраш/ясень RANCH ANG. | K69: 153.44 | L69: 6291.04 | M69: 5347.384 | N69: 137
B70: 112.0157.218 | C70: Рамка (C1) орех RANCH ANG. | K70: 184.8 | L70: 7576.8 | M70: 6440.28 | N70: 165
B71: 112.0157.219 | C71: Рамка (C1) вишня RANCH ANG. | K71: 184.8 | L71: 7576.8 | M71: 6440.28 | N71: 165
B72: 112.0157.220 | C72: Рамка (C2) неокраш/ольха RANCH ANG. | K72: 168 | L72: 6888 | M72: 5854.8 | N72: 150
B73: 112.0157.221 | C73: Рамка (C2) неокраш/ясень RANCH ANG. | K73: 168 | L73: 6888 | M73: 5854.8 | N73: 150
B74: 110.0157.163 | C74: Вытяжка WEST ANGOLO, корпус белый | E74: 1000/1000 | F74: белый | G74: 420/670 | H74: 46дб | I74: электромеханическое | J74: 2 лампы накаливания | K74: 616 | L74: 25256 | M74: 21467.6 | N74: 550
B75: 112.0157.222 | C75: Рамка (C3) неокраш/ольха WEST ANG. | K75: 153.44 | L75: 6291.04 | M75: 5347.384 | N75: 137
B76: 112.0157.223 | C76: Рамка (C3) неокраш/ясень WEST ANG. | K76: 153.44 | L76: 6291.04 | M76: 5347.384 | N76: 137
B77: 112.0157.224 | C77: Рамка (C3) орех WEST ANG. | K77: =N77+N77*12/100 -> 215.04 | L77: 8816.64 | M77: 7494.144 | N77: 192
A79: Смоленск, ул. Индустриальная, 2. "Дом Мебели", салон «EВРODOM» 3-й (последний) этаж, ТЕЛЕФОНЫ: 8(4812) 20 94 28, 8(920) 312 34 56

Sheet Аксессуары
F3: скидка
E4: accessory | F4: -0.15 | H4: accessory
A7: Прайс-лист на кухонные вытяжки "FABER" с 11/02/2013 | E7: Курс EUR* - | F7: =PREMIUM!L8 -> 41 | H7: Курс EUR* -
B8: FUN-code | C8: Наименование | D8: Продукт группа Faber | E8: Цена розница (EUR) | F8: Цена розница (руб.) | G8: Цена закупки, (руб.) | H8: Цена розница (EUR)
A11: для вытяжки Cocktail | B11: 112.0250.289 | C11: KIT CAMINI A500+A500 INOX | D11: accessory | E11: =H11+H11*12/100 -> 78.4 | F11: =E11*$F$7 -> 3214.4 | G11: =F11*(1+$F$4) -> 2732.24 | H11: 70
A12: для вытяжки Cocktail | B12: 112.0254.846 | C12: KIT CAMINI A500+A500 WH | D12: accessory | E12: =H12+H12*12/100 -> 78.4 | F12: =E12*$F$7 -> 3214.4 | G12: =F12*(1+$F$4) -> 2732.24 | H12: 70
A13: для вытяжки Cocktail | B13: 112.0250.290 | C13: KIT CAMINI A500+A500 BK | D13: accessory | E13: 78.4 | F13: =E13*$F$7 -> 3214.4 | G13: =F13*(1+$F$4) -> 2732.24 | H13: 70
B14: 112.0067.944 | C14: Угольный фильтр D155 H16 (VALUE) | D14: accessory | E14: 15.68 | F14: =E14*$F$7 -> 642.88 | G14: =F14*(1+$F$4) -> 546.448 | H14: 14
B15: 112.0157.238 | C15: Угольный фильтр H20 | D15: accessory | E15: 15.68 | F15: 642.88 | G15: 546.448 | H15: 14
B16: 112.0157.239 | C16: Угольный фильтр 270x450 IMAGO+ | D16: accessory | E16: 41.44 | F16: 1699.04 | G16: 1444.184 | H16: 37
B17: 112.0157.240 | C17: Угольный фильтр PERS.D196 | D17: accessory | E17: 23.52 | F17: 964.32 | G17: 819.672 | H17: 21
B18: 112.0157.241 | C18: Угольный фильтр OMNIA/TEKNA ISOLA | D18: accessory | E18: 25.76 | F18: 1056.16 | G18: 897.736 | H18: 23
B19: 112.0157.242 | C19: Угольный фильтр INCA SMART PERS. | D19: accessory | E19: 25.76 | F19: 1056.16 | G19: 897.736 | H19: 23
B20: 112.0157.243 | C20: Угольный фильтр STILO-ALTO/2 | D20: accessory | E20: 28 | F20: 1148 | G20: 975.8 | H20: 25
B21: 112.0157.245 | C21: Угольный фильтр для SIL-K | D21: accessory | E21: 33.6 | F21: 1377.6 | G21: 1170.96 | H21: 30
B22: 112.0157.251 | C22: Дымоход верх. X H990 PERLA/BRIO | D22: accessory | E22: 91.84 | F22: 3765.44 | G22: 3200.624 | H22: 82
B23: 112.0157.252 | C23: Дымоход верх. X H990 ALTO | D23: accessory | E23: 184.8 | F23: 7576.8 | G23: 6440.28 | H23: 165
B24: 112.0157.254 | C24: Дымоход верх. AL H990 ALTO | D24: accessory | E24: 215.04 | F24: 8816.64 | G24: 7494.144 | H24: 192
B25: 112.0157.256 | C25: Дымоход верх. X H990 AXIA PLUS | D25: accessory | E25: 153.44 | F25: 6291.04 | G25: 5347.384 | H25: 137
B26: 112.0157.257 | C26: Дымоход верх. X H990 SYNTHESIS | D26: accessory | E26: 123.2 | F26: 5051.2 | G26: 4293.52 | H26: 110
B27: 112.0157.258 | C27: Дымоход верх. X H990 TRATTO | D27: accessory | E27: 215.04 | F27: 8816.64 | G27: 7494.144 | H27: 192
B28: 112.0157.259 | C28: Дымоход верх. W H990 SYNTHESIS | D28: accessory | E28: 123.2 | F28: 5051.2 | G28: 4293.52 | H28: 110
B29: 112.0157.260 | C29: Дымоход верх. BK H990 SYNTHESIS | D29: accessory | E29: 123.2 | F29: 5051.2 | G29: 4293.52 | H29: 110
B30: 112.0157.261 | C30: Дымоход верх. X H990 SOLARIS | D30: accessory | E30: 153.44 | F30: 6291.04 | G30: 5347.384 | H30: 137
B31: 112.0157.262 | C31: Дымоход верх. X H990 TENDER | D31: accessory | E31: 153.44 | F31: 6291.04 | G31: 5347.384 | H31: 137
B32: 112.0157.263 | C32: Дымоход верх. X H990 PREMIO/STILO ANG. | D32: accessory | E32: 224 | F32: 9184 | G32: 7806.4 | H32: 200
B33: 112.0157.267 | C33: Дымоход + удлиннитель D370 F990 10L | D33: accessory | E33: 616 | F33: 25256 | G33: 21467.6 | H33: 550
B34: 112.0157.268 | C34: Дымоход верх. X H700 ISOLA | D34: accessory | E34: 431.2 | F34: 17679.2 | G34: 15027.32 | H34: 385
B35: 112.0157.269 | C35: Дымоход верх. X H910 CONO | D35: accessory | E35: 91.84 | F35: 3765.44 | G35: 3200.624 | H35: 82
B36: 112.0157.286 | C36: Шумопоглащающий комплект FB | D36: accessory | E36: 82.88 | F36: 3398.08 | G36: 2888.368 | H36: 74
B37: 112.0157.288 | C37: Фильтр BAFFLE LABIRINTO FABER | D37: accessory | E37: 49.28 | F37: 2020.48 | G37: 1717.408 | H37: 44
B38: 112.0157.290 | C38: Сушилка для посуды INOX | D38: accessory | E38: 1230.88 | F38: 50466.08 | G38: 42896.168 | H38: 1099
B39: 112.0157.354 | C39: Пульт дист.управления ACTIVE FABER | D39: accessory | E39: 45.92 | F39: 1882.72 | G39: 1600.312 | H39: 41
B40: 112.0157.499 | C40: Пульт дист.управления 5T FABER | D40: accessory | E40: 45.92 | F40: 1882.72 | G40: 1600.312 | H40: 41
B41: 112.0169.216 | C41: Комплект воздуховода | D41: accessory | E41: 67.2 | F41: 2755.2 | G41: 2341.92 | H41: 60
B42: 112.0158.127 | C42: Угольный фильтр для F-LIGHT | D42: accessory | E42: 112 | F42: 4592 | G42: 3903.2 | H42: 100
B43: 112.0185.276 | C43: Угольный фильтр с увеличенным ресурсом | D43: accessory | E43: 112 | F43: 4592 | G43: 3903.2 | H43: 100
B44: 112.0185.278 | C44: Угольный фильтр с увеличенным ресурсом | D44: accessory | E44: 140 | F44: 5740 | G44: 4879 | H44: 125
A45: Цены включают НДС.
A46: Смоленск, ул. Индустриальная, 2. "Дом Мебели", салон «EВРODOM» 3-й (последний) этаж, ТЕЛЕФОНЫ: 8(4812) 20 94 28, 8(920) 312 34 56

Sheet Технологии
B2: Описание технологических новинок 2012-2013
A4: Обозначение в каталоге | B4: Описание технологии | C4: Применение в модели | D4: FUN-code | E4: Сегмент прайс листа
A5: RGB-Light Technology | B5: RGB-Регулировка декоративной подсветки вытяжки с выбором и установкой желаемого цвета. | C5: ARKEA | D5: 110.0255.506 | E5: PREMIUM
A6: Мотор постоянного магнитного поля | B6: Бесщеточный двигатель обеспечивает значительную экономию энергии в сочетании с высокой производительностью. Эффективность: -85% потребления энергии (кВт/ч) при умеренно низкой скорости и -35% потребления(кВт/ч) на высокой скорости. Это самый тихий мотор на рынке. Его эффективность и работа остается стабильной в любых условиях эксплуатации.Помимо этого, мотор имеет большой ресурс работы. | C6: MIRROR ART BRS X/V A80 LOGIC MIRROR WH BRS X/V A80 LOGIC MIRROR BK BRS X/V A80 LOGIC MIRROR BK BRS X/V A90 LOGIC BLACK TIE BRS BK A80 LOOK BRS X/V A90 LOOK ISOLA BRS X/V A90 | D6: 110.0255.525 110.0255.528 110.0255.526 110.0255.527 110.0256.170 110.0256.172 110.0256.176 | E6: PREMIUM PREMIUM PREMIUM PREMIUM PREMIUM PREMIUM PREMIUM
A7: Активная система снижения шума | B7: Эта система способна распознавать шум при работе вытяжки и за счет создания встречной низкочастотной волны существенно снизить уровень шума. Система включает в себя микрофон, который распознает шум, электронную систему, способную генерировать обратную звуковую волну с помощью частотного динамика. Результат: снижение уровня шума на -13 дБ в сочетании с изменением частоты звука при работе вытяжке в сторону более низкого тона, более комфортного для восприятия человеком . | C7: DISCOVERY ACT EG8 X A90 REFLEX ACT EG8 X/V A90 PRETTY ACT EG8 X A90 PRETTY ISOLA ACT EG8 X A90 | D7: 110.0256.173 110.0255.504 110.0256.175 110.0256.174 | E7: PREMIUM PREMIUM PREMIUM PREMIUM
B8: Фильтрующая система HFH,эксклюзив от Faber . Это высокопроизводительная система фильтрации которая по сравнению с традиционными угольными фильтрами поглощающими 65% запахов имеет значительную эффективность ,не снижая производительности вытяжки в режиме рециркуляции.Новая система HFH способна очистить воздух на 95% за счет технологии Nanosorb©. Фильтры подлежат восстановлению их можно мыть,помимо этого система HFH снижает уровень шума вытяжки примерно на на 3 дБ (A). | C8: ALMA EG6 CREAM F32 PLATIS ISOLA HFH X F90 FIT HFH X/V F90 SIDE BRS X/V A90 BIOS EG6 RD/XS F32 BIOS EG6 WH F32 BIOS EG6 X F32 | D8: 110.0255.503 110.0255.550 110.0255.552 110.0256.171 110.0255.500 110.0255.501 110.0255.502 | E8: PREMIUM Kitchen Studio Kitchen Studio Kitchen Studio Kitchen Studio Kitchen Studio Kitchen Studio
A9: Защита от отпечатков пальцев | B9: Эффективная защита корпуса вытяжки из нержавеющей стали от отпечатков пальцев. | C9: CLEAR AF X/V A90 GLOVE AF X A90 GLOVE AF X A60 | D9: 110.0255.516 110.0255.548 110.0255.549 | E9: Kitchen Studio Kitchen Studio Kitchen Studio
A11: Смоленск, ул. Индустриальная, 2. "Дом Мебели", салон «EВРODOM» 3-й (последний) этаж, ТЕЛЕФОНЫ: 8(4812) 20 94 28, 8(920) 312 34 56
